{"text_format":"1","workbook":"xlsx","n_sheets":24,"sheets":["Risk","Crop","Log_TPL","Pests","Lists","Costs","Logos","Pest_Report","ALS","ELSR","ELSS","LLSR","LLSS","PBND","RUST","AFLA","CR","SR","DF","SU","RKN","RLN","SKM","SP"],"not_rendered":{"charts":3,"images":4,"macros":1,"external_links":0,"defined_names":198,"comments":0,"pivot_tables":0},"unopened":[],"bounds":{"document_bytes":16777216,"sheet_cells":100000,"rows_first":2000,"rows_last":500,"rows_between":2000,"halvings":0,"cell_chars":16384,"cell_head_chars":4096},"cells_cut":0,"cells_raw":0,"read":"whole","date_system":"1900"}

{"sheet":"Risk","index":0,"n_rows":40,"n_cols":21,"rows_kept":40,"cut":false,"hidden":false,"merged":[[10,6,10,7],[10,9,10,12],[10,13,10,16],[10,17,10,20],[17,6,17,7],[17,9,17,12],[17,13,17,16],[17,17,17,20],[14,6,14,7],[14,9,14,12],[14,13,14,16],[14,17,14,20],[1,5,1,6],[2,6,2,7],[2,9,2,12],[2,13,2,16],[2,17,2,20],[21,6,21,7],[21,9,21,12],[21,13,21,16],[21,17,21,20],[24,6,26,20]]}
[]
[]
[null,null,null,"Crop",null,null,"Disease (Foliar)",null,"Index","Low",null,null,null,"Med",null,null,null,"High"]
[null,null,null,"Cultivar","ICG FDRS 10",null,null,"Alternaria Leaf Spot",{"$f":"ALS_RiskIndex","v":73},73,73,73,73,73,73,73,73,73,73,73,73]
[null,null,null,"Planting Date","2022-05-15",null,null,"Early Leaf spot - Rainfed",{"$f":"ELSR_RiskIndex","v":68},68,68,68,68,68,68,68,68,68,68,68,68]
[null,null,null,"Plants per 1m Row","13 or more",null,null,"Early Leaf Spot - Summer",{"$f":"ELSS_RiskIndex","v":73},73,73,73,73,73,73,73,73,73,73,73,73]
[null,null,null,"Row Pattern","Twin (15 - 25 cm)",null,null,"Late Leaf Spot - Rainfed",{"$f":"LLSR_RiskIndex","v":68},68,68,68,68,68,68,68,68,68,68,68,68]
[null,null,null,"Field",null,null,null,"Late Leaf Spot - Summer",{"$f":"LLSS_RiskIndex","v":73},73,73,73,73,73,73,73,73,73,73,73,73]
[null,null,null,"Intercrop","None",null,null,"PBND",{"$f":"PBND_RiskIndex","v":68},68,68,68,68,68,68,68,68,68,68,68,68]
[null,null,null,"Irrigation","Irrigated (Recommended)",null,null,"Rust",{"$f":"RUST_RiskIndex","v":73},73,73,73,73,73,73,73,73,73,73,73,73]
[null,null,null,"Soil pH",7,null,"Disease (Stem)",null,"Index","Low",null,null,null,"Med",null,null,null,"High"]
[null,null,null,"Tillage","Conventional",null,null,"Aflaroot",{"$f":"AFLA_RiskIndex","v":68},68,68,68,68,68,68,68,68,68,68,68,68]
[null,null,null,"Field Crop Rotation",null,null,null,"Collar Rot",{"$f":"CR_RiskIndex","v":68},68,68,68,68,68,68,68,68,68,68,68,68]
[null,null,null,"1 Crop Season Ago","Cotton",null,null,"Stem Rot",{"$f":"SR_RiskIndex","v":83},83,83,83,83,83,83,83,83,83,83,83,83]
[null,null,null,"2 Crop Seasons Ago","Cotton",null,"Insect",null,"Index","Low",null,null,null,"Med",null,null,null,"High"]
[null,null,null,"3 Crop Seasons Ago","Groundnut",null,null,"Defoliaters",{"$f":"DF_RiskIndex","v":98},98,98,98,98,98,98,98,98,98,98,98,98]
[null,null,null,"4 Crop Seasons Ago","Groundnut",null,null,"Sucking Pests",{"$f":"SU_RiskIndex","v":98},98,98,98,98,98,98,98,98,98,98,98,98]
[null,null,null,"Field Nematode Population",null,null,"Nematode",null,"Index","Low",null,null,null,"Med",null,null,null,"High"]
[null,null,null,"Root Knot","High",null,null,"Root Knot",{"$f":"RKN_RiskIndex","v":35},35,35,35,35,35,35,35,35,35,35,35,35]
[null,null,null,"Root Lesion","High",null,null,"Root-Lesion",{"$f":"RLN_RiskIndex","v":35},35,35,35,35,35,35,35,35,35,35,35,35]
[null,null,null,"Stunt","High",null,null,"Stunt-Kalahasty Malady",{"$f":"SKM_RiskIndex","v":35},35,35,35,35,35,35,35,35,35,35,35,35]
[null,null,null,"Field Pest History",null,null,"Soil",null,"Index","Low",null,null,null,"Med",null,null,null,"High"]
[null,null,null,"Aflaroot","Present but not a problem with good fungicide/biocontrol program",null,null,"Pests",{"$f":"SP_RiskIndex","v":88},88,88,88,88,88,88,88,88,88,88,88,88]
[null,null,null,"Alternaria Leaf Spot","Present but not a problem with good fungicide program"]
[null,null,null,"Collar Rot","Present but not a problem with good fungicide/biocontrol program",null,"Red Dots - Change practices to eliminate.\r\nYellow Dots - Consider adjusting practices to reduce risk.\r\nGreen Dots - Risk is acceptable for selected practices."]
[null,null,null,"Defoliators","Present but not a problem with good pesticide program"]
[null,null,null,"Early Leaf Spot Rainfed","Present but not a problem with good fungicide program"]
[null,null,null,"Early Leaf Spot Summer","Present but not a problem with good fungicide program"]
[null,null,null,"Late Leaf Spot Rainfed","Present but not a problem with good fungicide program"]
[null,null,null,"Late Leaf Spot Summer","Present but not a problem with good fungicide program"]
[null,null,null,"PBND","Present but not a problem with good fungicide program"]
[null,null,null,"Rust","Present but not a problem with good fungicide program"]
[null,null,null,"Soil Pests","Present but not a problem with good pesticide program"]
[null,null,null,"Stem Rot","Present but not a problem with good fungicide/biocontrol program"]
[null,null,null,"Sucking Pests","Present but not a problem with good pesticide program"]
[null,null,null,"Natural Pest Enemy Population"]
[null,null,null,"Defoliators","Low/Below Average"]
[null,null,null,"Sucking Pests","Low/Below Average"]
[null,null,null,"Pest Control"]
[null,null,null,"Nematicide","Metam Sodium"]

{"sheet":"Crop","index":1,"n_rows":15,"n_cols":5,"rows_kept":15,"cut":false,"hidden":true,"merged":[[11,1,11,5],[14,1,14,5],[15,1,15,5],[6,1,6,5],[7,1,7,5],[8,1,8,5],[9,1,9,5],[10,1,10,5],[12,1,12,5],[13,1,13,5]]}
["Crop","Groundnut"]
[]
["Planting Season","Date","Month","Day of Month","Day of Year"]
["Start","2021-01-01",{"$f":"MONTH(B4)","v":1},{"$f":"DAY(B4)","v":1},{"$f":"B4-DATE(YEAR(B4),1,1)+1","v":1}]
["End","2021-12-31",{"$f":"MONTH(B5)","v":12},{"$f":"DAY(B5)","v":31},{"$f":"B5-DATE(YEAR(B5),1,1)+1","v":365}]
[]
["Title","Groundnut Risk Tool - India"]
["Subtitle"]
["Credit Lines"]
[null,"Kuldeep Singh Jadon, Poonam Jasrotia, Thirumalaisamy PP, "]
[null,"Harish G, Prasanna Holajjer, and Nataraja Maheshala"]
[null,"India Council of Agricultural Research "]
[]
[null,"David Jordan, Greg Buol, and Barbara Shew"]
[null,"North Carolina State University, Raleigh NC"]

{"sheet":"Log_TPL","index":2,"n_rows":244,"n_cols":25,"rows_kept":244,"cut":false,"hidden":true,"merged":[[98,5,98,9],[98,10,98,17],[140,4,141,12],[0,0,0,14],[25,5,25,14]]}
["Field and Production Information"]
[null,null,null,null,null,null,null,null,null,null,null,null,null,null,null,null,null,null,"Input Selection Lists"]
[null,null,null,"Crop",{"$f":"Crop","v":"Groundnut"},null,null,null,null,null,null,null,null,null,null,null,null,null,"Tillage_Pracs","Land_Plaster_Meth","Land_Plaster_Type","Digging_Eq","Combine","Moisture_Status","Control_Rating"]
[null,null,null,"Field Area (ha)"]
[null,null,null,null,null,null,null,null,null,null,null,null,null,null,null,null,null,null,"Bed","Banded","Bagged","2 Row Digger","2 Row Pull Type Combine","Dry","No Control (<5%)"]
[null,null,null,"Soil ","Mapped Series","% of Field",null,null,null,null,null,null,null,null,null,null,null,null,"Chisel","Broadcast","Bulk","4 Row Digger","4 Row Pull Type Combine","Adequate","Poor (5% to 20%)"]
[null,null,null,null,null,null,null,null,null,null,null,null,null,null,null,null,null,null,"Cultivate","Other","Granular","6 Row Digger","6 Row Pull Type Combine","Wet","Low (20% to 50%)"]
[null,null,null,null,null,null,null,null,null,null,null,null,null,null,null,null,null,null,"Disk",null,"Other","Other","6 Row Self-Propelled Combine",null,"Moderate (50% to 80%)"]
[null,null,null,null,null,null,null,null,null,null,null,null,null,null,null,null,null,null,"Moldboard Plow",null,null,null,"8 Row Self-Propelled Combine",null,"High (80% to 90%)"]
[null,null,null,null,null,null,null,null,null,null,null,null,null,null,null,null,null,null,"No Till",null,null,null,"Other",null,"Excellent (90% to 100%)"]
[null,null,null,null,null,null,null,null,null,null,null,null,null,null,null,null,null,null,"Other"]
[null,null,null,null,null,null,null,null,null,null,null,null,null,null,null,null,null,null,"Rip"]
[null,null,null,"Tillage Practice","Date","Equipment",null,null,null,null,null,null,null,null,null,null,null,null,"Rip and Bed"]
[null,null,null,null,null,null,null,null,null,null,null,null,null,null,null,null,null,null,"Strip Till"]
[]
[]
[]
[null,null,null,"Lime Applications","Date","Rate (kg/ha)"]
[null,null,null,"Current Year"]
[null,null,null,"Last Year"]
[]
[null,null,null,"Seed Inoculation","Date","Inoculant"]
[]
[]
[null,null,null,"Fertilizer","Date","N","P2O5","K2O","B","Cu","Fe","Mn","Mo","S","Zn"]
[null,null,null,null,null,"kg/ha"]
[]
[]
[]
[]
[]
[null,null,null,"Land Plaster","Date","Trade Name","Type","Method","Rate (kg/ha)"]
[]
[]
[null,null,null,"Herbicides","Date","Weeds","Weed Size","Trade Name","Rate","Trade Name","Rate","Trade Name","Rate","Trade Name","Rate","Evaluation Date","Control Rating"]
[null,null,null,"Burndown"]
[null,null,null,"Preplant"]
[null,null,null,"Preemergence"]
[null,null,null,"At Cracking"]
[null,null,null,"First Postemergence"]
[null,null,null,"Second Postemergence"]
[null,null,null,"Third Postemergence"]
[]
[null,null,null,"Leaf Spot Program","Date","Severity","Trade Name","Rate","Trade Name","Rate","Trade Name","Rate","Evaluation Date","Control Rating"]
[]
[]
[]
[]
[]
[]
[]
[]
[]
[]
[]
[]
[]
[null,null,null,"Pest Treaments","Date","Severity","Trade Name","Rate","Trade Name","Rate","Evaluation Date","Control Rating"]
[null,null,null,"Sclerotina Blight"]
[]
[null,null,null,"CBR"]
[]
[null,null,null,"Southern Corn Rootworm"]
[]
[null,null,null,"Spider Mites"]
[]
[]
[null,null,null,"Insecticide Treaments","Date","Pest","Severity","Trade Name","Rate","Trade Name","Rate","Evaluation Date","Control Rating"]
[null,null,null,"In-furrow"]
[null,null,null,"Foliar"]
[]
[]
[]
[]
[]
[]
[null,null,null,"Development Dates","Date"]
[null,null,null,"Emergence"]
[null,null,null,"First Flower"]
[null,null,null,"First Peg"]
[null,null,null,"Last Flower"]
[]
[null,null,null,"Development Moisture Status"]
[null,null,null,"Planting to Emergence"]
[null,null,null,"Emergence to Flowering"]
[null,null,null,"Flowering to Pod Formation"]
[null,null,null,"Pod Formation to Harvest"]
[]
[null,null,null,"Weeds at Harvest"]
[]
[]
[]
[]
[]
[]
[]
[]
[null,null,null,"Pod Blasting Data","Date","White","Yellow","Orange","Brown","Black","White","Yellow","Orange","Brown","Black","Brown/Black"]
[null,null,null,null,null,"Pod Count",null,null,null,null,"Percentage(%)"]
[null,null,null,null,null,null,null,null,null,null,{"$f":"IF(SUM($F100:$J100)=0,NA(),F100/(SUM($F100:$J100)))","v":{"$error":"#N/A"}},{"$f":"IF(SUM($F100:$J100)=0,NA(),G100/(SUM($F100:$J100)))","v":{"$error":"#N/A"}},{"$error":"#N/A"},{"$error":"#N/A"},{"$error":"#N/A"},{"$f":"N100+O100","v":{"$error":"#N/A"}}]
[null,null,null,null,null,null,null,null,null,null,{"$error":"#N/A"},{"$error":"#N/A"},{"$error":"#N/A"},{"$error":"#N/A"},{"$error":"#N/A"},{"$f":"N101+O101","v":{"$error":"#N/A"}}]
[null,null,null,null,null,null,null,null,null,null,{"$error":"#N/A"},{"$error":"#N/A"},{"$error":"#N/A"},{"$error":"#N/A"},{"$error":"#N/A"},{"$error":"#N/A"}]
[null,null,null,null,null,null,null,null,null,null,{"$error":"#N/A"},{"$error":"#N/A"},{"$error":"#N/A"},{"$error":"#N/A"},{"$error":"#N/A"},{"$error":"#N/A"}]
[]
[null,null,null,"Digging","Date","Equipment"]
[]
[]
[null,null,null,"Harvest","Date","Equipment"]
[]
[]
[null,null,null,"Yield Goal (kg/ha)"]
[null,null,null,"Yield (kg/ha)"]
[null,null,null,"Selling Price (₹/kg)"]
[]
[null,null,null,"Grading Results","Grams (gr)","Percentage (%)"]
[null,null,null,"Foreign Material Sample"]
[null,null,null,"Foreign Material",null,{"$f":"IFERROR(E117/E116,0)","v":0}]
[null,null,null,"LSK",null,{"$f":"IFERROR(E118/E116,0)","v":0}]
[null,null,null,"Moisture"]
[]
[null,null,null,"Cleaned Sample"]
[null,null,null,"Fancy",null,{"$f":"IFERROR(E122/E121,0)","v":0}]
[null,null,null,"Kernels Riding ELK Screen"]
[null,null,null,"Total ELK Damage"]
[null,null,null,"Net ELK",{"$f":"E123-E124","v":0},{"$f":"IFERROR(E125/E121,0)","v":0}]
[null,null,null,"Kernels Riding Prescribed Screen"]
[]
[null,null,null,"Total KRS"]
[null,null,null,"Damage KRS"]
[null,null,null,"SMKRS",{"$f":"E128-E129","v":0},{"$f":"IFERROR(E130/E121,0)","v":0}]
[null,null,null,"Sound Splits",null,{"$f":"IFERROR(E131/E121,0)","v":0}]
[null,null,null,"Total SMK",null,{"$f":"F130+F131","v":0}]
[null,null,null,"Other Kernels",null,{"$f":"IFERROR(E133/E121,0)","v":0}]
[null,null,null,"Damage Splits"]
[null,null,null,"Total Damage",null,{"$f":"IFERROR(E135/E121,0)","v":0}]
[null,null,null,"Total Kernels",null,{"$f":"F132+F133+F134+F135","v":0}]
[null,null,null,"Hulls",null,{"$f":"IFERROR(E137/E121,0)","v":0}]
[null,null,null,"Total Kernels & Halls",null,{"$f":"F136+F137","v":0}]
[null,null,null,"Freeze Damage",null,{"$f":"IFERROR(E139/E121,0)","v":0}]
[null,null,null,"Concealed RMD",null,{"$f":"IFERROR(E140/E121,0)","v":0}]
[null,null,null,"Remarks"]
[]
[]
[null,null,null,"Rainfall/Irrigation","Date","Amount (mm)","Month",null,"Month","Amount (mm)"]
[null,null,null,null,null,null,{"$f":"IF(ISBLANK(E145),\"\",TEXT(E145,\"mmm\"))","v":""},null,"Jan",{"$f":"SUMIF(G$145:G$244,\"=\" & I145,F$145:F$244)","v":0}]
[null,null,null,null,null,null,{"$f":"IF(ISBLANK(E146),\"\",TEXT(E146,\"mmm\"))","v":""},null,"Feb",{"$f":"SUMIF(G$145:G$244,\"=\" & I146,F$145:F$244)","v":0}]
[null,null,null,null,null,null,"",null,"Mar",0]
[null,null,null,null,null,null,"",null,"Apr",0]
[null,null,null,null,null,null,"",null,"May",0]
[null,null,null,null,null,null,"",null,"Jun",0]
[null,null,null,null,null,null,"",null,"Jul",0]
[null,null,null,null,null,null,"",null,"Aug",0]
[null,null,null,null,null,null,"",null,"Sep",0]
[null,null,null,null,null,null,"",null,"Oct",0]
[null,null,null,null,null,null,"",null,"Nov",0]
[null,null,null,null,null,null,"",null,"Dec",0]
[null,null,null,null,null,null,""]
[null,null,null,null,null,null,""]
[null,null,null,null,null,null,""]
[null,null,null,null,null,null,""]
[null,null,null,null,null,null,""]
[null,null,null,null,null,null,""]
[null,null,null,null,null,null,""]
[null,null,null,null,null,null,""]
[null,null,null,null,null,null,""]
[null,null,null,null,null,null,""]
[null,null,null,null,null,null,""]
[null,null,null,null,null,null,""]
[null,null,null,null,null,null,""]
[null,null,null,null,null,null,""]
[null,null,null,null,null,null,""]
[null,null,null,null,null,null,""]
[null,null,null,null,null,null,""]
[null,null,null,null,null,null,""]
[null,null,null,null,null,null,""]
[null,null,null,null,null,null,""]
[null,null,null,null,null,null,""]
[null,null,null,null,null,null,""]
[null,null,null,null,null,null,""]
[null,null,null,null,null,null,""]
[null,null,null,null,null,null,""]
[null,null,null,null,null,null,""]
[null,null,null,null,null,null,""]
[null,null,null,null,null,null,""]
[null,null,null,null,null,null,""]
[null,null,null,null,null,null,""]
[null,null,null,null,null,null,""]
[null,null,null,null,null,null,""]
[null,null,null,null,null,null,""]
[null,null,null,null,null,null,""]
[null,null,null,null,null,null,""]
[null,null,null,null,null,null,""]
[null,null,null,null,null,null,""]
[null,null,null,null,null,null,""]
[null,null,null,null,null,null,""]
[null,null,null,null,null,null,""]
[null,null,null,null,null,null,""]
[null,null,null,null,null,null,""]
[null,null,null,null,null,null,""]
[null,null,null,null,null,null,""]
[null,null,null,null,null,null,""]
[null,null,null,null,null,null,""]
[null,null,null,null,null,null,""]
[null,null,null,null,null,null,""]
[null,null,null,null,null,null,""]
[null,null,null,null,null,null,""]
[null,null,null,null,null,null,""]
[null,null,null,null,null,null,""]
[null,null,null,null,null,null,""]
[null,null,null,null,null,null,{"$f":"IF(ISBLANK(E210),\"\",TEXT(E210,\"mmm\"))","v":""}]
[null,null,null,null,null,null,""]
[null,null,null,null,null,null,""]
[null,null,null,null,null,null,""]
[null,null,null,null,null,null,""]
[null,null,null,null,null,null,""]
[null,null,null,null,null,null,""]
[null,null,null,null,null,null,""]
[null,null,null,null,null,null,""]
[null,null,null,null,null,null,""]
[null,null,null,null,null,null,""]
[null,null,null,null,null,null,""]
[null,null,null,null,null,null,""]
[null,null,null,null,null,null,""]
[null,null,null,null,null,null,""]
[null,null,null,null,null,null,""]
[null,null,null,null,null,null,""]
[null,null,null,null,null,null,""]
[null,null,null,null,null,null,""]
[null,null,null,null,null,null,""]
[null,null,null,null,null,null,""]
[null,null,null,null,null,null,""]
[null,null,null,null,null,null,""]
[null,null,null,null,null,null,""]
[null,null,null,null,null,null,""]
[null,null,null,null,null,null,""]
[null,null,null,null,null,null,""]
[null,null,null,null,null,null,""]
[null,null,null,null,null,null,""]
[null,null,null,null,null,null,""]
[null,null,null,null,null,null,""]
[null,null,null,null,null,null,""]
[null,null,null,null,null,null,""]
[null,null,null,null,null,null,""]
[null,null,null,null,null,null,""]

{"sheet":"Pests","index":3,"n_rows":17,"n_cols":3,"rows_kept":17,"cut":false,"hidden":true,"merged":[]}
["PestType","Pest","PestID"]
["Disease (Foliar)","Alternaria Leaf Spot","ALS"]
["Disease (Foliar)","Early Leaf spot - Rainfed","ELSR"]
["Disease (Foliar)","Early Leaf Spot - Summer","ELSS"]
["Disease (Foliar)","Late Leaf Spot - Rainfed","LLSR"]
["Disease (Foliar)","Late Leaf Spot - Summer","LLSS"]
["Disease (Foliar)","PBND","PBND"]
["Disease (Foliar)","Rust","RUST"]
["Disease (Stem)","Aflaroot","AFLA"]
["Disease (Stem)","Collar Rot","CR"]
["Disease (Stem)","Stem Rot","SR"]
["Insect","Defoliaters","DF"]
["Insect","Sucking Pests","SU"]
["Nematode","Root Knot","RKN"]
["Nematode","Root-Lesion","RLN"]
["Nematode","Stunt-Kalahasty Malady","SKM"]
["Soil","Pests","SP"]

{"sheet":"Lists","index":4,"n_rows":39,"n_cols":42,"rows_kept":39,"cut":false,"hidden":true,"merged":[]}
["Category","Category_Pest","CategoryID","Category_List","Category_List_Type","Months","Land_Area_Units","Crop\\Cultivar","Field\\Irrigation","Field\\Tillage","Crops","Field_Pest_History\\Alternaria_Leaf_Spot","Crop\\Planting_Date_ALS","Crop\\Planting_Date_ELSR","Field_Pest_History\\Early_Leaf_Spot_Rainfed","Crop\\Planting_Date_ELSS","Field_Pest_History\\Early_Leaf_Spot_Summer","Crop\\Planting_Date_LLSR","Field_Pest_History\\Late_Leaf_Spot_Rainfed","Crop\\Planting_Date_LLSS","Field_Pest_History\\Late_Leaf_Spot_Summer","Crop\\Planting_Date_PBND","Crop\\Plants_per_1m_Row","Field_Pest_History\\PBND","Field\\Intercrop","Crop\\Planting_Date_RUST","Field_Pest_History\\Rust","Field_Pest_History\\Aflaroot","Field_Pest_History\\Collar_Rot","Crop\\Row_Pattern","Field\\Soil_pH","Field_Pest_History\\Stem_Rot","Field_Pest_History\\Defoliators","Natural_Pest_Enemy_Population\\Defoliators","Natural_Pest_Enemy_Population\\Sucking_Pests","Field_Pest_History\\Sucking_Pests","Field_Nematode_Population\\Root_Knot","Pest_Control\\Nematicide","Field_Nematode_Population\\Root_Lesion","Field_Nematode_Population\\Stunt","Field_Pest_History\\Soil_Pests","Crop\\Planting_Date_SP"]
["Crop\\Cultivar",null,"Crop\\Cultivar","Crop\\Cultivar","Single","(01) January","ac","BG 3","01|Non-Irrigated","01|Conventional","Chickpea","01|None (Groundnuts never grown)","001 to 055","001 to 170","01|None (Groundnuts never grown)","001 to 055","01|None (Grountnuts never grown)","001 to 170","01|None (Groundnuts never grown)","001 to 055","01|None (Groundnuts never grown)","001 to 181","01|6 or fewer","01|None (Peanuts never grown)","01|None","001 to 170","01|None (Groundnut never grown)","01|None (Groundnut never grown)","01|None (Peanut never grown)","01|Single (75 - 100 cm)","5.9 or lower","01|None (Groundnut never grown)","01|None (Groundnut never grown)","01|Low/Below Average","01|Low/Below Average","01|None (Groundnut never grown)","01|None","01|None","01|None","01|None","01|None (Peanuts never grown)","001 to 181"]
["Crop\\Planting_Date","ALS","Crop\\Planting_Date","Crop\\Planting_Date_ALS","Date","(02) February","ha","CSMG 84-1","02|Irrigated (Recommended)","02|Deep (Improved)","Cotton","02|Present but not a problem with good fungicide program","056 to 365","171 to 365","02|Present but not a problem with good fungicide program","056 to 365","02|Present but not a problem with good fungicide program","171 to 365","02|Present but not a problem with good fungicide program","056 to 365","02|Present but not a problem with good fungicide program","182 to 196","02|7 to 12","02|Present but not a problem with good fungicide program","02|Cluster Bean","171 to 365","02|Present but not a problem with good fungicide program","02|Present but not a problem with good fungicide/biocontrol program","02|Present but not a problem with good fungicide/biocontrol program","02|Twin (15 - 25 cm)","6.0 to 7.9","02|Present but not a problem with good fungicide/biocontrol program","02|Present but not a problem with good pesticide program","02|Average","02|Average","02|Present but not a problem with good pesticide program","02|Low","02|Metam Sodium","02|Low","02|Low","02|Present but not a problem with good pesticide program","182 to 196"]
["Crop\\Planting_Date","ELSR","Crop\\Planting_Date","Crop\\Planting_Date_ELSR","Date","(03) March",null,"GG 2","03|Irrigated","03|Strip into killed cover crop or previous crop residue","Cumin","03|Problem even with good fungicide program",null,null,"03|Problem even with good fungicide program",null,"03|Problem even with good fungicide program",null,"03|Problem even with good fungicide program",null,"03|Problem even with good fungicide program","197 to 365","03|13 or more","02|Problem even with good fungicide program","03|Cotton",null,"03|Problem even with good fungicide program","03|Problem even with good fungicide/biocontrol program","03|Problem even with good fungicide/biocontrol program",null,"8.0 or higher","03|Problem even with good fungicide/biocontrol program","03|Problem even with good pesticide program","03|Good/Above Average","03|Good/Above Average","03|Problem even with good pesticide program","03|Moderate","03|Phorate 20 G","03|Moderate","03|Moderate","03|Problem even with good pesticide program","197 to 365"]
["Crop\\Planting_Date","ELSS","Crop\\Planting_Date","Crop\\Planting_Date_ELSS","Date","(04) April",null,"GG 20",null,null,"Fodder",null,null,null,null,null,null,null,null,null,null,null,null,null,"04|Maize",null,null,null,null,null,null,null,null,null,null,null,"04|High","04|Temik","04|High","04|High"]
["Crop\\Planting_Date","LLSR","Crop\\Planting_Date","Crop\\Planting_Date_LLSR","Date","(05) May",null,"GG 7",null,null,"Garlic",null,null,null,null,null,null,null,null,null,null,null,null,null,"05|Pearl Millet",null,null,null,null,null,null,null,null,null,null,null,null,"05|Temik and Metam Sodium"]
["Crop\\Planting_Date","LLSS","Crop\\Planting_Date","Crop\\Planting_Date_LLSS","Date","(06) June",null,"ICG FDRS 10",null,null,"Groundnut",null,null,null,null,null,null,null,null,null,null,null,null,null,"06|Pulses",null,null,null,null,null,null,null,null,null,null,null,null,"06|Thimet 20 G"]
["Crop\\Planting_Date","PBND","Crop\\Planting_Date","Crop\\Planting_Date_PBND","Date","(07) July",null,"ICGS 44",null,null,"Melons",null,null,null,null,null,null,null,null,null,null,null,null,null,"07|Sorghum"]
["Crop\\Planting_Date","RUST","Crop\\Planting_Date","Crop\\Planting_Date_RUST","Date","(08) August",null,"ICGS 76",null,null,"Onion"]
["Crop\\Planting_Date","SP","Crop\\Planting_Date","Crop\\Planting_Date_SP","Date","(09) September",null,"ICGV 86590",null,null,"Pearl Millet"]
["Crop\\Plants_per_1m_Row",null,"Crop\\Plants_per_1m_Row","Crop\\Plants_per_1m_Row","Single","(10) October",null,"M 335",null,null,"Vegetables"]
["Crop\\Row_Pattern",null,"Crop\\Row_Pattern","Crop\\Row_Pattern","Single","(11) November",null,"M 522",null,null,"Wheat"]
["Field\\Intercrop",null,"Field\\Intercrop","Field\\Intercrop","Single","(12) December",null,"R 8808"]
["Field\\Irrigation",null,"Field\\Irrigation","Field\\Irrigation","Single",null,null,"R 9201"]
["Field\\Soil_pH",null,"Field\\Soil_pH","Field\\Soil_pH","pH",null,null,"Somnath"]
["Field\\Tillage",null,"Field\\Tillage","Field\\Tillage","Single",null,null,"TG 37 A"]
["Field_Crop_Rotation\\1_Crop_Season_Ago",null,"Field_Crop_Rotation\\1_Crop_Season_Ago","Crops","Single",null,null,"TPG-41"]
["Field_Crop_Rotation\\2_Crop_Seasons_Ago",null,"Field_Crop_Rotation\\2_Crop_Seasons_Ago","Crops","Single"]
["Field_Crop_Rotation\\3_Crop_Seasons_Ago",null,"Field_Crop_Rotation\\3_Crop_Seasons_Ago","Crops","Single"]
["Field_Crop_Rotation\\4_Crop_Seasons_Ago",null,"Field_Crop_Rotation\\4_Crop_Seasons_Ago","Crops","Single"]
["Field_Nematode_Population\\Root_Knot",null,"Field_Nematode_Population\\Root_Knot","Field_Nematode_Population\\Root_Knot","Single"]
["Field_Nematode_Population\\Root_Lesion",null,"Field_Nematode_Population\\Root_Lesion","Field_Nematode_Population\\Root_Lesion","Single"]
["Field_Nematode_Population\\Stunt",null,"Field_Nematode_Population\\Stunt","Field_Nematode_Population\\Stunt","Single"]
["Field_Pest_History\\Aflaroot",null,"Field_Pest_History\\Aflaroot","Field_Pest_History\\Aflaroot","Single"]
["Field_Pest_History\\Alternaria_Leaf_Spot",null,"Field_Pest_History\\Alternaria_Leaf_Spot","Field_Pest_History\\Alternaria_Leaf_Spot","Single"]
["Field_Pest_History\\Collar_Rot",null,"Field_Pest_History\\Collar_Rot","Field_Pest_History\\Collar_Rot","Single"]
["Field_Pest_History\\Defoliators",null,"Field_Pest_History\\Defoliators","Field_Pest_History\\Defoliators","Single"]
["Field_Pest_History\\Early_Leaf_Spot_Rainfed",null,"Field_Pest_History\\Early_Leaf_Spot_Rainfed","Field_Pest_History\\Early_Leaf_Spot_Rainfed","Single"]
["Field_Pest_History\\Early_Leaf_Spot_Summer",null,"Field_Pest_History\\Early_Leaf_Spot_Summer","Field_Pest_History\\Early_Leaf_Spot_Summer","Single"]
["Field_Pest_History\\Late_Leaf_Spot_Rainfed",null,"Field_Pest_History\\Late_Leaf_Spot_Rainfed","Field_Pest_History\\Late_Leaf_Spot_Rainfed","Single"]
["Field_Pest_History\\Late_Leaf_Spot_Summer",null,"Field_Pest_History\\Late_Leaf_Spot_Summer","Field_Pest_History\\Late_Leaf_Spot_Summer","Single"]
["Field_Pest_History\\PBND",null,"Field_Pest_History\\PBND","Field_Pest_History\\PBND","Single"]
["Field_Pest_History\\Rust",null,"Field_Pest_History\\Rust","Field_Pest_History\\Rust","Single"]
["Field_Pest_History\\Soil_Pests",null,"Field_Pest_History\\Soil_Pests","Field_Pest_History\\Soil_Pests","Single"]
["Field_Pest_History\\Stem_Rot",null,"Field_Pest_History\\Stem_Rot","Field_Pest_History\\Stem_Rot","Single"]
["Field_Pest_History\\Sucking_Pests",null,"Field_Pest_History\\Sucking_Pests","Field_Pest_History\\Sucking_Pests","Single"]
["Natural_Pest_Enemy_Population\\Defoliators",null,"Natural_Pest_Enemy_Population\\Defoliators","Natural_Pest_Enemy_Population\\Defoliators","Single"]
["Natural_Pest_Enemy_Population\\Sucking_Pests",null,"Natural_Pest_Enemy_Population\\Sucking_Pests","Natural_Pest_Enemy_Population\\Sucking_Pests","Single"]
["Pest_Control\\Nematicide",null,"Pest_Control\\Nematicide","Pest_Control\\Nematicide","Single"]

{"sheet":"Costs","index":5,"n_rows":24,"n_cols":14,"rows_kept":24,"cut":false,"hidden":true,"merged":[[0,7,0,9],[0,10,0,12],[6,7,6,9],[6,10,6,12],[10,7,10,9],[10,10,10,12]]}
["Land Area Units ","ha",null,null,null,null,null,{"$f":"Cost_Header","v":"Cost (₹/ha)"},null,null,{"$f":"CONCATENATE(\"Person Hours (hrs/\",sel_Land_Area_Units,\")\")","v":"Person Hours (hrs/ha)"}]
["Category","Item",{"$f":"CONCATENATE(\"Cost (₹/\",sel_Land_Area_Units,\")\")","v":"Cost (₹/ha)"},"Multiplier",{"$f":"CONCATENATE(\"Person Hours (hrs/\",sel_Land_Area_Units,\")\")","v":"Person Hours (hrs/ha)"},null,"Category","Max","Min","Sel","Max","Min","Sel","Selection"]
["Base_Cost",null,0,null,0,null,"Base_Cost",{"$f":"Cost_Base","v":0},{"$f":"Cost_Base","v":0},{"$f":"Cost_Base","v":0},{"$f":"PersonHours_Base","v":0},{"$f":"PersonHours_Base","v":0},{"$f":"PersonHours_Base","v":0}]
[]
[null,null,null,null,null,null,"Total",{"$f":"SUM(H$3:H3)","v":0},{"$f":"SUM(I$3:I3)","v":0},{"$f":"IF(ISERROR(SUM(J$3:J3)),0,SUM(J$3:J3))","v":0},{"$f":"SUM(K$3:K3)","v":0},{"$f":"SUM(L$3:L3)","v":0},{"$f":"IF(ISERROR(SUM(M$3:M3)),0,SUM(M$3:M3))","v":0}]
[]
[null,null,null,null,null,null,null,{"$f":"CONCATENATE(\"Cost Thresholds (₹/\",sel_Land_Area_Units,\")\")","v":"Cost Thresholds (₹/ha)"},null,null,{"$f":"CONCATENATE(\"Person Hour Thresholds (hrs/\",sel_Land_Area_Units,\")\")","v":"Person Hour Thresholds (hrs/ha)"}]
[null,null,null,null,null,null,"High",{"$f":"Cost_Min + 0.66667*(Cost_Max-Cost_Min)","v":0},null,null,{"$f":"PersonHours_Min + 0.66667*(PersonHours_Max-PersonHours_Min)","v":0}]
[null,null,null,null,null,null,"Moderate",{"$f":"Cost_Min + 0.33333*(Cost_Max-Cost_Min)","v":0},null,null,{"$f":"PersonHours_Min + 0.33333*(PersonHours_Max-PersonHours_Min)","v":0}]
[]
[null,null,null,null,null,null,null,{"$f":"CONCATENATE(\"Cost Ranges (₹/\",sel_Land_Area_Units,\")\")","v":"Cost Ranges (₹/ha)"},null,null,{"$f":"CONCATENATE(\"Person Hour Ranges (hrs/\",sel_Land_Area_Units,\")\")","v":"Person Hour Ranges (hrs/ha)"}]
[null,null,null,null,null,null,"Base",{"$f":"Cost_Base","v":0},null,null,{"$f":"PersonHours_Base","v":0}]
[null,null,null,null,null,null,"Low",{"$f":"Cost_Moderate-Cost_Base","v":0},null,null,{"$f":"PersonHours_Moderate-PersonHours_Base","v":0}]
[null,null,null,null,null,null,"Moderate",{"$f":"Cost_High-Cost_Moderate","v":0},null,null,{"$f":"PersonHours_High-PersonHours_Moderate","v":0}]
[null,null,null,null,null,null,"High",{"$f":"Cost_Max-Cost_High","v":0},null,null,{"$f":"PersonHours_Max-PersonHours_High","v":0}]
[]
[null,null,null,null,null,null,{"$f":"CONCATENATE(\"Estimated Cost: ₹ \",ROUNDUP(TRUNC(Cost,2),0),\"/\",sel_Land_Area_Units)","v":"Estimated Cost: ₹ 0/ha"}]
[]
[]
[]
[]
[]
[]
[null,null,null,null,null,null,{"$f":"CONCATENATE(\"Estimated Person Hours: \",ROUNDUP(TRUNC(PersonHours,2),0),\" hrs/\",sel_Land_Area_Units)","v":"Estimated Person Hours: 0 hrs/ha"}]

{"sheet":"Logos","index":6,"n_rows":0,"n_cols":0,"rows_kept":0,"cut":false,"hidden":true,"merged":[]}

{"sheet":"Pest_Report","index":7,"n_rows":46,"n_cols":4,"rows_kept":46,"cut":false,"hidden":true,"merged":[[41,3,43,3],[45,0,45,3],[37,0,37,1],[37,2,37,3],[38,3,39,3],[40,0,40,1],[40,2,40,3],[10,3,12,3],[13,0,13,1],[13,2,13,3],[14,3,15,3],[16,0,16,1],[16,2,16,3],[31,2,31,3],[17,3,19,3],[20,0,20,1],[20,2,20,3],[21,3,23,3],[25,3,27,3],[32,3,33,3],[34,0,34,1],[34,2,34,3],[35,3,36,3],[0,0,0,3],[5,0,5,1],[5,2,5,3],[6,3,8,3],[9,0,9,1],[9,2,9,3],[28,0,28,1],[28,2,28,3],[29,3,30,3],[31,0,31,1],[24,0,24,1],[24,2,24,3]]}
["Groundnut - Stem Rot Risk Summary"]
[]
[]
[]
[]
["Crop\\Cultivar",null,"Risk Points"]
[null,"GG 20",30,10]
[null,"BG 3, CSMG 84-1, GG 2, GG 7, ICGS 44, ICGS 76, M 335, M 522, Somnath",20]
[null,"ICG FDRS 10*, ICGV 86590, R 8808, R 9201, TG 37 A, TPG-41",10]
["Crop\\Plants per 1m Row",null,"Risk Points"]
[null,"13 or more*",15,15]
[null,"7 to 12",10]
[null,"6 or fewer",5]
["Crop\\Row Pattern",null,"Risk Points"]
[null,"Single (75 - 100 cm)",10,5]
[null,"Twin (15 - 25 cm)*",5]
["Field\\Irrigation",null,"Risk Points"]
[null,"Non-Irrigated",15,10]
[null,"Irrigated*",10]
[null,"Irrigated (Recommended)",5]
["Field\\Soil pH",null,"Risk Points"]
[null,"5.9 or lower",15,10]
[null,"6.0 to 7.9*",10]
[null,"8.0 or higher",5]
["Field\\Tillage",null,"Risk Points"]
[null,"Conventional*",15,15]
[null,"Strip into killed cover crop or previous crop residue",10]
[null,"Deep (Improved)",5]
["Field Crop Rotation\\1 Crop Season Ago",null,"Risk Points"]
[null,"Groundnut, Melons, Vegetables",12,1]
[null,"Chickpea, Cotton*, Cumin, Fodder, Garlic, Onion, Pearl Millet, Wheat",1]
["Field Crop Rotation\\2 Crop Seasons Ago",null,"Risk Points"]
[null,"Groundnut, Melons, Vegetables",8,1]
[null,"Chickpea, Cotton*, Cumin, Fodder, Garlic, Onion, Pearl Millet, Wheat",1]
["Field Crop Rotation\\3 Crop Seasons Ago",null,"Risk Points"]
[null,"Groundnut*, Melons, Vegetables",4,4]
[null,"Chickpea, Cotton, Cumin, Fodder, Garlic, Onion, Pearl Millet, Wheat",1]
["Field Crop Rotation\\4 Crop Seasons Ago",null,"Risk Points"]
[null,"Groundnut*, Melons, Vegetables",2,2]
[null,"Chickpea, Cotton, Cumin, Fodder, Garlic, Onion, Pearl Millet, Wheat",1]
["Field Pest History\\Stem Rot",null,"Risk Points"]
[null,"Problem even with good fungicide/biocontrol program",20,15]
[null,"Present but not a problem with good fungicide/biocontrol program*",15]
[null,"None (Groundnut never grown)",5]
[]
["* Selected options used in calculating pest risk.\r\nNote: Reduction in pest risk value by a control practice will be less under low risk conditions."]

{"sheet":"ALS","index":8,"n_rows":22,"n_cols":12,"rows_kept":22,"cut":false,"hidden":true,"merged":[[0,0,0,3]]}
["Alternaria Leaf Spot"]
["Category","Risk Level","Risk Level Description","Points",null,null,null,"Category","Max","Min","Risk","Selection"]
["Crop\\Cultivar",1,"GG 20",30,null,null,null,"Crop\\Cultivar",30,10,{"$f":"getRiskValue(\"A:A\",H3,J3,L3,\"Single\")","v":10},{"$f":"IF(ISBLANK(sel_Crop\\Cultivar),\"\",sel_Crop\\Cultivar)","v":"ICG FDRS 10"}]
["Crop\\Cultivar",2,"BG 3|CSMG 84-1|GG 2|GG 7|ICGS 44|ICGS 76|M 335|M 522|Somnath",20,null,null,null,"Field\\Irrigation",15,5,{"$f":"getRiskValue(\"A:A\",H4,J4,L4,\"Single\")","v":15},{"$f":"IF(ISBLANK(sel_Field\\Irrigation),\"\",sel_Field\\Irrigation)","v":"Irrigated (Recommended)"}]
["Crop\\Cultivar",3,"ICG FDRS 10|ICGV 86590|R 8808|R 9201|TG 37 A|TPG-41",10,null,null,null,"Field\\Tillage",15,5,{"$f":"getRiskValue(\"A:A\",H5,J5,L5,\"Single\")","v":15},{"$f":"IF(ISBLANK(sel_Field\\Tillage),\"\",sel_Field\\Tillage)","v":"Conventional"}]
["Crop\\Planting_Date",1,"056 to 365",10,null,null,null,"Field_Crop_Rotation\\1_Crop_Season_Ago",15,3,{"$f":"getRiskValue(\"A:A\",H6,J6,L6,\"Single\")","v":3},{"$f":"IF(ISBLANK(sel_Field_Crop_Rotation\\1_Crop_Season_Ago),\"\",sel_Field_Crop_Rotation\\1_Crop_Season_Ago)","v":"Cotton"}]
["Crop\\Planting_Date",2,"001 to 055",5,null,null,null,"Field_Pest_History\\Alternaria_Leaf_Spot",15,5,{"$f":"getRiskValue(\"A:A\",H7,J7,L7,\"Single\")","v":10},{"$f":"IF(ISBLANK(sel_Field_Pest_History\\Alternaria_Leaf_Spot),\"\",sel_Field_Pest_History\\Alternaria_Leaf_Spot)","v":"Present but not a problem with good fungicide program"}]
["Field\\Irrigation",1,"Irrigated (Recommended)|Irrigated",15,null,null,null,"Crop\\Planting_Date",10,5,{"$f":"getRiskValue(\"A:A\",H8,J8,L8,\"Date\")","v":10},{"$f":"IF(ISBLANK(sel_Crop\\Planting_Date),\"\",sel_Crop\\Planting_Date)","v":"2022-05-15"}]
["Field\\Irrigation",2,"Non-Irrigated",5,null,null,null,"Field_Crop_Rotation\\2_Crop_Seasons_Ago",10,2,{"$f":"getRiskValue(\"A:A\",H9,J9,L9,\"Single\")","v":2},{"$f":"IF(ISBLANK(sel_Field_Crop_Rotation\\2_Crop_Seasons_Ago),\"\",sel_Field_Crop_Rotation\\2_Crop_Seasons_Ago)","v":"Cotton"}]
["Field\\Tillage",1,"Conventional|Deep (Improved)",15,null,null,null,"Field_Crop_Rotation\\3_Crop_Seasons_Ago",5,2,{"$f":"getRiskValue(\"A:A\",H10,J10,L10,\"Single\")","v":5},{"$f":"IF(ISBLANK(sel_Field_Crop_Rotation\\3_Crop_Seasons_Ago),\"\",sel_Field_Crop_Rotation\\3_Crop_Seasons_Ago)","v":"Groundnut"}]
["Field\\Tillage",2,"Strip into killed cover crop or previous crop residue",5,null,null,null,"Field_Crop_Rotation\\4_Crop_Seasons_Ago",3,1,{"$f":"getRiskValue(\"A:A\",H11,J11,L11,\"Single\")","v":3},{"$f":"IF(ISBLANK(sel_Field_Crop_Rotation\\4_Crop_Seasons_Ago),\"\",sel_Field_Crop_Rotation\\4_Crop_Seasons_Ago)","v":"Groundnut"}]
["Field_Crop_Rotation\\1_Crop_Season_Ago",1,"Groundnut",15]
["Field_Crop_Rotation\\1_Crop_Season_Ago",2,"Chickpea|Cotton|Cumin|Fodder|Garlic|Melons|Onion|Pearl Millet|Vegetables|Wheat",3,null,null,null,"Total",{"$f":"SUMIF(I3:I11,\">0\")","v":118},{"$f":"SUMIF(J3:J11,\">0\")","v":38},{"$f":"MAX(ALS_MinRiskIndex,SUM(K3:K11))","v":73}]
["Field_Crop_Rotation\\2_Crop_Seasons_Ago",1,"Groundnut",10]
["Field_Crop_Rotation\\2_Crop_Seasons_Ago",2,"Chickpea|Cotton|Cumin|Fodder|Garlic|Melons|Onion|Pearl Millet|Vegetables|Wheat",2,null,null,null,"High Risk Index",85]
["Field_Crop_Rotation\\3_Crop_Seasons_Ago",1,"Groundnut",5,null,null,null,"Moderate Risk Index",60]
["Field_Crop_Rotation\\3_Crop_Seasons_Ago",2,"Chickpea|Cotton|Cumin|Fodder|Garlic|Melons|Onion|Pearl Millet|Vegetables|Wheat",2]
["Field_Crop_Rotation\\4_Crop_Seasons_Ago",1,"Groundnut",3]
["Field_Crop_Rotation\\4_Crop_Seasons_Ago",2,"Chickpea|Cotton|Cumin|Fodder|Garlic|Melons|Onion|Pearl Millet|Vegetables|Wheat",1]
["Field_Pest_History\\Alternaria_Leaf_Spot",1,"Problem even with good fungicide program",15]
["Field_Pest_History\\Alternaria_Leaf_Spot",2,"Present but not a problem with good fungicide program",10]
["Field_Pest_History\\Alternaria_Leaf_Spot",3,"None (Groundnuts never grown)",5]

{"sheet":"ELSR","index":9,"n_rows":22,"n_cols":12,"rows_kept":22,"cut":false,"hidden":true,"merged":[[0,0,0,3]]}
["Early Leaf spot - Rainfed"]
["Category","Risk Level","Risk Level Description","Points",null,null,null,"Category","Max","Min","Risk","Selection"]
["Crop\\Cultivar",1,"GG 20",30,null,null,null,"Crop\\Cultivar",30,10,{"$f":"getRiskValue(\"A:A\",H3,J3,L3,\"Single\")","v":10},{"$f":"IF(ISBLANK(sel_Crop\\Cultivar),\"\",sel_Crop\\Cultivar)","v":"ICG FDRS 10"}]
["Crop\\Cultivar",2,"BG 3|CSMG 84-1|GG 2|GG 7|ICGS 44|ICGS 76|M 335|M 522|Somnath",20,null,null,null,"Field\\Irrigation",15,5,{"$f":"getRiskValue(\"A:A\",H4,J4,L4,\"Single\")","v":15},{"$f":"IF(ISBLANK(sel_Field\\Irrigation),\"\",sel_Field\\Irrigation)","v":"Irrigated (Recommended)"}]
["Crop\\Cultivar",3,"ICG FDRS 10|ICGV 86590|R 8808|R 9201|TG 37 A|TPG-41",10,null,null,null,"Field\\Tillage",15,5,{"$f":"getRiskValue(\"A:A\",H5,J5,L5,\"Single\")","v":15},{"$f":"IF(ISBLANK(sel_Field\\Tillage),\"\",sel_Field\\Tillage)","v":"Conventional"}]
["Crop\\Planting_Date",1,"171 to 365",10,null,null,null,"Field_Crop_Rotation\\1_Crop_Season_Ago",15,3,{"$f":"getRiskValue(\"A:A\",H6,J6,L6,\"Single\")","v":3},{"$f":"IF(ISBLANK(sel_Field_Crop_Rotation\\1_Crop_Season_Ago),\"\",sel_Field_Crop_Rotation\\1_Crop_Season_Ago)","v":"Cotton"}]
["Crop\\Planting_Date",2,"001 to 170",5,null,null,null,"Field_Pest_History\\Early_Leaf_Spot_Rainfed",15,5,{"$f":"getRiskValue(\"A:A\",H7,J7,L7,\"Single\")","v":10},{"$f":"IF(ISBLANK(sel_Field_Pest_History\\Early_Leaf_Spot_Rainfed),\"\",sel_Field_Pest_History\\Early_Leaf_Spot_Rainfed)","v":"Present but not a problem with good fungicide program"}]
["Field\\Irrigation",1,"Irrigated (Recommended)|Irrigated",15,null,null,null,"Crop\\Planting_Date",10,5,{"$f":"getRiskValue(\"A:A\",H8,J8,L8,\"Date\")","v":5},{"$f":"IF(ISBLANK(sel_Crop\\Planting_Date),\"\",sel_Crop\\Planting_Date)","v":"2022-05-15"}]
["Field\\Irrigation",2,"Non-Irrigated",5,null,null,null,"Field_Crop_Rotation\\2_Crop_Seasons_Ago",10,2,{"$f":"getRiskValue(\"A:A\",H9,J9,L9,\"Single\")","v":2},{"$f":"IF(ISBLANK(sel_Field_Crop_Rotation\\2_Crop_Seasons_Ago),\"\",sel_Field_Crop_Rotation\\2_Crop_Seasons_Ago)","v":"Cotton"}]
["Field\\Tillage",1,"Conventional|Deep (Improved)",15,null,null,null,"Field_Crop_Rotation\\3_Crop_Seasons_Ago",5,2,{"$f":"getRiskValue(\"A:A\",H10,J10,L10,\"Single\")","v":5},{"$f":"IF(ISBLANK(sel_Field_Crop_Rotation\\3_Crop_Seasons_Ago),\"\",sel_Field_Crop_Rotation\\3_Crop_Seasons_Ago)","v":"Groundnut"}]
["Field\\Tillage",2,"Strip into killed cover crop or previous crop residue",5,null,null,null,"Field_Crop_Rotation\\4_Crop_Seasons_Ago",3,1,{"$f":"getRiskValue(\"A:A\",H11,J11,L11,\"Single\")","v":3},{"$f":"IF(ISBLANK(sel_Field_Crop_Rotation\\4_Crop_Seasons_Ago),\"\",sel_Field_Crop_Rotation\\4_Crop_Seasons_Ago)","v":"Groundnut"}]
["Field_Crop_Rotation\\1_Crop_Season_Ago",1,"Groundnut",15]
["Field_Crop_Rotation\\1_Crop_Season_Ago",2,"Chickpea|Cotton|Cumin|Fodder|Garlic|Melons|Onion|Pearl Millet|Vegetables|Wheat",3,null,null,null,"Total",{"$f":"SUMIF(I3:I11,\">0\")","v":118},{"$f":"SUMIF(J3:J11,\">0\")","v":38},{"$f":"MAX(ELSR_MinRiskIndex,SUM(K3:K11))","v":68}]
["Field_Crop_Rotation\\2_Crop_Seasons_Ago",1,"Groundnut",10]
["Field_Crop_Rotation\\2_Crop_Seasons_Ago",2,"Chickpea|Cotton|Cumin|Fodder|Garlic|Melons|Onion|Pearl Millet|Vegetables|Wheat",2,null,null,null,"High Risk Index",85]
["Field_Crop_Rotation\\3_Crop_Seasons_Ago",1,"Groundnut",5,null,null,null,"Moderate Risk Index",60]
["Field_Crop_Rotation\\3_Crop_Seasons_Ago",2,"Chickpea|Cotton|Cumin|Fodder|Garlic|Melons|Onion|Pearl Millet|Vegetables|Wheat",2]
["Field_Crop_Rotation\\4_Crop_Seasons_Ago",1,"Groundnut",3]
["Field_Crop_Rotation\\4_Crop_Seasons_Ago",2,"Chickpea|Cotton|Cumin|Fodder|Garlic|Melons|Onion|Pearl Millet|Vegetables|Wheat",1]
["Field_Pest_History\\Early_Leaf_Spot_Rainfed",1,"Problem even with good fungicide program",15]
["Field_Pest_History\\Early_Leaf_Spot_Rainfed",2,"Present but not a problem with good fungicide program",10]
["Field_Pest_History\\Early_Leaf_Spot_Rainfed",3,"None (Groundnuts never grown)",5]

{"sheet":"ELSS","index":10,"n_rows":22,"n_cols":12,"rows_kept":22,"cut":false,"hidden":true,"merged":[[0,0,0,3]]}
["Early Leaf Spot - Summer"]
["Category","Risk Level","Risk Level Description","Points",null,null,null,"Category","Max","Min","Risk","Selection"]
["Crop\\Cultivar",1,"GG 20",30,null,null,null,"Crop\\Cultivar",30,10,{"$f":"getRiskValue(\"A:A\",H3,J3,L3,\"Single\")","v":10},{"$f":"IF(ISBLANK(sel_Crop\\Cultivar),\"\",sel_Crop\\Cultivar)","v":"ICG FDRS 10"}]
["Crop\\Cultivar",2,"BG 3|CSMG 84-1|GG 2|GG 7|ICGS 44|ICGS 76|M 335|M 522|Somnath",20,null,null,null,"Field\\Irrigation",15,5,{"$f":"getRiskValue(\"A:A\",H4,J4,L4,\"Single\")","v":15},{"$f":"IF(ISBLANK(sel_Field\\Irrigation),\"\",sel_Field\\Irrigation)","v":"Irrigated (Recommended)"}]
["Crop\\Cultivar",3,"ICG FDRS 10|ICGV 86590|R 8808|R 9201|TG 37 A|TPG-41",10,null,null,null,"Field\\Tillage",15,5,{"$f":"getRiskValue(\"A:A\",H5,J5,L5,\"Single\")","v":15},{"$f":"IF(ISBLANK(sel_Field\\Tillage),\"\",sel_Field\\Tillage)","v":"Conventional"}]
["Crop\\Planting_Date",1,"056 to 365",10,null,null,null,"Field_Crop_Rotation\\1_Crop_Season_Ago",15,3,{"$f":"getRiskValue(\"A:A\",H6,J6,L6,\"Single\")","v":3},{"$f":"IF(ISBLANK(sel_Field_Crop_Rotation\\1_Crop_Season_Ago),\"\",sel_Field_Crop_Rotation\\1_Crop_Season_Ago)","v":"Cotton"}]
["Crop\\Planting_Date",2,"001 to 055",5,null,null,null,"Field_Pest_History\\Early_Leaf_Spot_Summer",15,5,{"$f":"getRiskValue(\"A:A\",H7,J7,L7,\"Single\")","v":10},{"$f":"IF(ISBLANK(sel_Field_Pest_History\\Early_Leaf_Spot_Summer),\"\",sel_Field_Pest_History\\Early_Leaf_Spot_Summer)","v":"Present but not a problem with good fungicide program"}]
["Field\\Irrigation",1,"Irrigated (Recommended)|Irrigated",15,null,null,null,"Crop\\Planting_Date",10,5,{"$f":"getRiskValue(\"A:A\",H8,J8,L8,\"Date\")","v":10},{"$f":"IF(ISBLANK(sel_Crop\\Planting_Date),\"\",sel_Crop\\Planting_Date)","v":"2022-05-15"}]
["Field\\Irrigation",2,"Non-Irrigated",5,null,null,null,"Field_Crop_Rotation\\2_Crop_Seasons_Ago",10,2,{"$f":"getRiskValue(\"A:A\",H9,J9,L9,\"Single\")","v":2},{"$f":"IF(ISBLANK(sel_Field_Crop_Rotation\\2_Crop_Seasons_Ago),\"\",sel_Field_Crop_Rotation\\2_Crop_Seasons_Ago)","v":"Cotton"}]
["Field\\Tillage",1,"Conventional|Deep (Improved)",15,null,null,null,"Field_Crop_Rotation\\3_Crop_Seasons_Ago",5,2,{"$f":"getRiskValue(\"A:A\",H10,J10,L10,\"Single\")","v":5},{"$f":"IF(ISBLANK(sel_Field_Crop_Rotation\\3_Crop_Seasons_Ago),\"\",sel_Field_Crop_Rotation\\3_Crop_Seasons_Ago)","v":"Groundnut"}]
["Field\\Tillage",2,"Strip into killed cover crop or previous crop residue",5,null,null,null,"Field_Crop_Rotation\\4_Crop_Seasons_Ago",3,1,{"$f":"getRiskValue(\"A:A\",H11,J11,L11,\"Single\")","v":3},{"$f":"IF(ISBLANK(sel_Field_Crop_Rotation\\4_Crop_Seasons_Ago),\"\",sel_Field_Crop_Rotation\\4_Crop_Seasons_Ago)","v":"Groundnut"}]
["Field_Crop_Rotation\\1_Crop_Season_Ago",1,"Groundnut",15]
["Field_Crop_Rotation\\1_Crop_Season_Ago",2,"Chickpea|Cotton|Cumin|Fodder|Garlic|Melons|Onion|Pearl Millet|Vegetables|Wheat",3,null,null,null,"Total",{"$f":"SUMIF(I3:I11,\">0\")","v":118},{"$f":"SUMIF(J3:J11,\">0\")","v":38},{"$f":"MAX(ELSS_MinRiskIndex,SUM(K3:K11))","v":73}]
["Field_Crop_Rotation\\2_Crop_Seasons_Ago",1,"Groundnut",10]
["Field_Crop_Rotation\\2_Crop_Seasons_Ago",2,"Chickpea|Cotton|Cumin|Fodder|Garlic|Melons|Onion|Pearl Millet|Vegetables|Wheat",2,null,null,null,"High Risk Index",85]
["Field_Crop_Rotation\\3_Crop_Seasons_Ago",1,"Groundnut",5,null,null,null,"Moderate Risk Index",60]
["Field_Crop_Rotation\\3_Crop_Seasons_Ago",2,"Chickpea|Cotton|Cumin|Fodder|Garlic|Melons|Onion|Pearl Millet|Vegetables|Wheat",2]
["Field_Crop_Rotation\\4_Crop_Seasons_Ago",1,"Groundnut",3]
["Field_Crop_Rotation\\4_Crop_Seasons_Ago",2,"Chickpea|Cotton|Cumin|Fodder|Garlic|Melons|Onion|Pearl Millet|Vegetables|Wheat",1]
["Field_Pest_History\\Early_Leaf_Spot_Summer",1,"Problem even with good fungicide program",15]
["Field_Pest_History\\Early_Leaf_Spot_Summer",2,"Present but not a problem with good fungicide program",10]
["Field_Pest_History\\Early_Leaf_Spot_Summer",3,"None (Grountnuts never grown)",5]

{"sheet":"LLSR","index":11,"n_rows":22,"n_cols":12,"rows_kept":22,"cut":false,"hidden":true,"merged":[[0,0,0,3]]}
["Late Leaf Spot - Rainfed"]
["Category","Risk Level","Risk Level Description","Points",null,null,null,"Category","Max","Min","Risk","Selection"]
["Crop\\Cultivar",1,"GG 20",30,null,null,null,"Crop\\Cultivar",30,10,{"$f":"getRiskValue(\"A:A\",H3,J3,L3,\"Single\")","v":10},{"$f":"IF(ISBLANK(sel_Crop\\Cultivar),\"\",sel_Crop\\Cultivar)","v":"ICG FDRS 10"}]
["Crop\\Cultivar",2,"BG 3|CSMG 84-1|GG 2|GG 7|ICGS 44|ICGS 76|M 335|M 522|Somnath",20,null,null,null,"Field\\Irrigation",15,5,{"$f":"getRiskValue(\"A:A\",H4,J4,L4,\"Single\")","v":15},{"$f":"IF(ISBLANK(sel_Field\\Irrigation),\"\",sel_Field\\Irrigation)","v":"Irrigated (Recommended)"}]
["Crop\\Cultivar",3,"ICG FDRS 10|ICGV 86590|R 8808|R 9201|TG 37 A|TPG-41",10,null,null,null,"Field\\Tillage",15,5,{"$f":"getRiskValue(\"A:A\",H5,J5,L5,\"Single\")","v":15},{"$f":"IF(ISBLANK(sel_Field\\Tillage),\"\",sel_Field\\Tillage)","v":"Conventional"}]
["Crop\\Planting_Date",1,"171 to 365",10,null,null,null,"Field_Crop_Rotation\\1_Crop_Season_Ago",15,3,{"$f":"getRiskValue(\"A:A\",H6,J6,L6,\"Single\")","v":3},{"$f":"IF(ISBLANK(sel_Field_Crop_Rotation\\1_Crop_Season_Ago),\"\",sel_Field_Crop_Rotation\\1_Crop_Season_Ago)","v":"Cotton"}]
["Crop\\Planting_Date",2,"001 to 170",5,null,null,null,"Field_Pest_History\\Late_Leaf_Spot_Rainfed",15,5,{"$f":"getRiskValue(\"A:A\",H7,J7,L7,\"Single\")","v":10},{"$f":"IF(ISBLANK(sel_Field_Pest_History\\Late_Leaf_Spot_Rainfed),\"\",sel_Field_Pest_History\\Late_Leaf_Spot_Rainfed)","v":"Present but not a problem with good fungicide program"}]
["Field\\Irrigation",1,"Irrigated (Recommended)|Irrigated",15,null,null,null,"Crop\\Planting_Date",10,5,{"$f":"getRiskValue(\"A:A\",H8,J8,L8,\"Date\")","v":5},{"$f":"IF(ISBLANK(sel_Crop\\Planting_Date),\"\",sel_Crop\\Planting_Date)","v":"2022-05-15"}]
["Field\\Irrigation",2,"Non-Irrigated",5,null,null,null,"Field_Crop_Rotation\\2_Crop_Seasons_Ago",10,2,{"$f":"getRiskValue(\"A:A\",H9,J9,L9,\"Single\")","v":2},{"$f":"IF(ISBLANK(sel_Field_Crop_Rotation\\2_Crop_Seasons_Ago),\"\",sel_Field_Crop_Rotation\\2_Crop_Seasons_Ago)","v":"Cotton"}]
["Field\\Tillage",1,"Conventional|Deep (Improved)",15,null,null,null,"Field_Crop_Rotation\\3_Crop_Seasons_Ago",5,2,{"$f":"getRiskValue(\"A:A\",H10,J10,L10,\"Single\")","v":5},{"$f":"IF(ISBLANK(sel_Field_Crop_Rotation\\3_Crop_Seasons_Ago),\"\",sel_Field_Crop_Rotation\\3_Crop_Seasons_Ago)","v":"Groundnut"}]
["Field\\Tillage",2,"Strip into killed cover crop or previous crop residue",5,null,null,null,"Field_Crop_Rotation\\4_Crop_Seasons_Ago",3,1,{"$f":"getRiskValue(\"A:A\",H11,J11,L11,\"Single\")","v":3},{"$f":"IF(ISBLANK(sel_Field_Crop_Rotation\\4_Crop_Seasons_Ago),\"\",sel_Field_Crop_Rotation\\4_Crop_Seasons_Ago)","v":"Groundnut"}]
["Field_Crop_Rotation\\1_Crop_Season_Ago",1,"Groundnut",15]
["Field_Crop_Rotation\\1_Crop_Season_Ago",2,"Chickpea|Cotton|Cumin|Fodder|Garlic|Melons|Onion|Pearl Millet|Vegetables|Wheat",3,null,null,null,"Total",{"$f":"SUMIF(I3:I11,\">0\")","v":118},{"$f":"SUMIF(J3:J11,\">0\")","v":38},{"$f":"MAX(LLSR_MinRiskIndex,SUM(K3:K11))","v":68}]
["Field_Crop_Rotation\\2_Crop_Seasons_Ago",1,"Groundnut",10]
["Field_Crop_Rotation\\2_Crop_Seasons_Ago",2,"Chickpea|Cotton|Cumin|Fodder|Garlic|Melons|Onion|Pearl Millet|Vegetables|Wheat",2,null,null,null,"High Risk Index",85]
["Field_Crop_Rotation\\3_Crop_Seasons_Ago",1,"Groundnut",5,null,null,null,"Moderate Risk Index",60]
["Field_Crop_Rotation\\3_Crop_Seasons_Ago",2,"Chickpea|Cotton|Cumin|Fodder|Garlic|Melons|Onion|Pearl Millet|Vegetables|Wheat",2]
["Field_Crop_Rotation\\4_Crop_Seasons_Ago",1,"Groundnut",3]
["Field_Crop_Rotation\\4_Crop_Seasons_Ago",2,"Chickpea|Cotton|Cumin|Fodder|Garlic|Melons|Onion|Pearl Millet|Vegetables|Wheat",1]
["Field_Pest_History\\Late_Leaf_Spot_Rainfed",1,"Problem even with good fungicide program",15]
["Field_Pest_History\\Late_Leaf_Spot_Rainfed",2,"Present but not a problem with good fungicide program",10]
["Field_Pest_History\\Late_Leaf_Spot_Rainfed",3,"None (Groundnuts never grown)",5]

{"sheet":"LLSS","index":12,"n_rows":22,"n_cols":12,"rows_kept":22,"cut":false,"hidden":true,"merged":[[0,0,0,3]]}
["Late Leaf Spot - Summer"]
["Category","Risk Level","Risk Level Description","Points",null,null,null,"Category","Max","Min","Risk","Selection"]
["Crop\\Cultivar",1,"GG 20",30,null,null,null,"Crop\\Cultivar",30,10,{"$f":"getRiskValue(\"A:A\",H3,J3,L3,\"Single\")","v":10},{"$f":"IF(ISBLANK(sel_Crop\\Cultivar),\"\",sel_Crop\\Cultivar)","v":"ICG FDRS 10"}]
["Crop\\Cultivar",2,"BG 3|CSMG 84-1|GG 2|GG 7|ICGS 44|ICGS 76|M 335|M 522|Somnath",20,null,null,null,"Field\\Irrigation",15,5,{"$f":"getRiskValue(\"A:A\",H4,J4,L4,\"Single\")","v":15},{"$f":"IF(ISBLANK(sel_Field\\Irrigation),\"\",sel_Field\\Irrigation)","v":"Irrigated (Recommended)"}]
["Crop\\Cultivar",3,"ICG FDRS 10|ICGV 86590|R 8808|R 9201|TG 37 A|TPG-41",10,null,null,null,"Field\\Tillage",15,5,{"$f":"getRiskValue(\"A:A\",H5,J5,L5,\"Single\")","v":15},{"$f":"IF(ISBLANK(sel_Field\\Tillage),\"\",sel_Field\\Tillage)","v":"Conventional"}]
["Crop\\Planting_Date",1,"056 to 365",10,null,null,null,"Field_Crop_Rotation\\1_Crop_Season_Ago",15,3,{"$f":"getRiskValue(\"A:A\",H6,J6,L6,\"Single\")","v":3},{"$f":"IF(ISBLANK(sel_Field_Crop_Rotation\\1_Crop_Season_Ago),\"\",sel_Field_Crop_Rotation\\1_Crop_Season_Ago)","v":"Cotton"}]
["Crop\\Planting_Date",2,"001 to 055",5,null,null,null,"Field_Pest_History\\Late_Leaf_Spot_Summer",15,5,{"$f":"getRiskValue(\"A:A\",H7,J7,L7,\"Single\")","v":10},{"$f":"IF(ISBLANK(sel_Field_Pest_History\\Late_Leaf_Spot_Summer),\"\",sel_Field_Pest_History\\Late_Leaf_Spot_Summer)","v":"Present but not a problem with good fungicide program"}]
["Field\\Irrigation",1,"Irrigated (Recommended)|Irrigated",15,null,null,null,"Crop\\Planting_Date",10,5,{"$f":"getRiskValue(\"A:A\",H8,J8,L8,\"Date\")","v":10},{"$f":"IF(ISBLANK(sel_Crop\\Planting_Date),\"\",sel_Crop\\Planting_Date)","v":"2022-05-15"}]
["Field\\Irrigation",2,"Non-Irrigated",5,null,null,null,"Field_Crop_Rotation\\2_Crop_Seasons_Ago",10,2,{"$f":"getRiskValue(\"A:A\",H9,J9,L9,\"Single\")","v":2},{"$f":"IF(ISBLANK(sel_Field_Crop_Rotation\\2_Crop_Seasons_Ago),\"\",sel_Field_Crop_Rotation\\2_Crop_Seasons_Ago)","v":"Cotton"}]
["Field\\Tillage",1,"Conventional|Deep (Improved)",15,null,null,null,"Field_Crop_Rotation\\3_Crop_Seasons_Ago",5,2,{"$f":"getRiskValue(\"A:A\",H10,J10,L10,\"Single\")","v":5},{"$f":"IF(ISBLANK(sel_Field_Crop_Rotation\\3_Crop_Seasons_Ago),\"\",sel_Field_Crop_Rotation\\3_Crop_Seasons_Ago)","v":"Groundnut"}]
["Field\\Tillage",2,"Strip into killed cover crop or previous crop residue",5,null,null,null,"Field_Crop_Rotation\\4_Crop_Seasons_Ago",3,1,{"$f":"getRiskValue(\"A:A\",H11,J11,L11,\"Single\")","v":3},{"$f":"IF(ISBLANK(sel_Field_Crop_Rotation\\4_Crop_Seasons_Ago),\"\",sel_Field_Crop_Rotation\\4_Crop_Seasons_Ago)","v":"Groundnut"}]
["Field_Crop_Rotation\\1_Crop_Season_Ago",1,"Groundnut",15]
["Field_Crop_Rotation\\1_Crop_Season_Ago",2,"Chickpea|Cotton|Cumin|Fodder|Garlic|Melons|Onion|Pearl Millet|Vegetables|Wheat",3,null,null,null,"Total",{"$f":"SUMIF(I3:I11,\">0\")","v":118},{"$f":"SUMIF(J3:J11,\">0\")","v":38},{"$f":"MAX(LLSS_MinRiskIndex,SUM(K3:K11))","v":73}]
["Field_Crop_Rotation\\2_Crop_Seasons_Ago",1,"Groundnut",10]
["Field_Crop_Rotation\\2_Crop_Seasons_Ago",2,"Chickpea|Cotton|Cumin|Fodder|Garlic|Melons|Onion|Pearl Millet|Vegetables|Wheat",2,null,null,null,"High Risk Index",85]
["Field_Crop_Rotation\\3_Crop_Seasons_Ago",1,"Groundnut",5,null,null,null,"Moderate Risk Index",60]
["Field_Crop_Rotation\\3_Crop_Seasons_Ago",2,"Chickpea|Cotton|Cumin|Fodder|Garlic|Melons|Onion|Pearl Millet|Vegetables|Wheat",2]
["Field_Crop_Rotation\\4_Crop_Seasons_Ago",1,"Groundnut",3]
["Field_Crop_Rotation\\4_Crop_Seasons_Ago",2,"Chickpea|Cotton|Cumin|Fodder|Garlic|Melons|Onion|Pearl Millet|Vegetables|Wheat",1]
["Field_Pest_History\\Late_Leaf_Spot_Summer",1,"Problem even with good fungicide program",15]
["Field_Pest_History\\Late_Leaf_Spot_Summer",2,"Present but not a problem with good fungicide program",10]
["Field_Pest_History\\Late_Leaf_Spot_Summer",3,"None (Groundnuts never grown)",5]

{"sheet":"PBND","index":13,"n_rows":26,"n_cols":12,"rows_kept":26,"cut":false,"hidden":true,"merged":[[0,0,0,3]]}
["PBND"]
["Category","Risk Level","Risk Level Description","Points",null,null,null,"Category","Max","Min","Risk","Selection"]
["Crop\\Cultivar",1,"GG 20",30,null,null,null,"Crop\\Cultivar",30,10,{"$f":"getRiskValue(\"A:A\",H3,J3,L3,\"Single\")","v":10},{"$f":"IF(ISBLANK(sel_Crop\\Cultivar),\"\",sel_Crop\\Cultivar)","v":"ICG FDRS 10"}]
["Crop\\Cultivar",2,"BG 3|CSMG 84-1|GG 2|GG 7|ICGS 44|ICGS 76|M 335|M 522|Somnath",20,null,null,null,"Crop\\Plants_per_1m_Row",25,5,{"$f":"getRiskValue(\"A:A\",H4,J4,L4,\"Single\")","v":5},{"$f":"IF(ISBLANK(sel_Crop\\Plants_per_1m_Row),\"\",sel_Crop\\Plants_per_1m_Row)","v":"13 or more"}]
["Crop\\Cultivar",3,"ICG FDRS 10|ICGV 86590|R 8808|R 9201|TG 37 A|TPG-41",10,null,null,null,"Crop\\Planting_Date",20,5,{"$f":"getRiskValue(\"A:A\",H5,J5,L5,\"Date\")","v":20},{"$f":"IF(ISBLANK(sel_Crop\\Planting_Date),\"\",sel_Crop\\Planting_Date)","v":"2022-05-15"}]
["Crop\\Planting_Date",1,"001 to 181",20,null,null,null,"Field_Pest_History\\PBND",20,5,{"$f":"getRiskValue(\"A:A\",H6,J6,L6,\"Single\")","v":10},{"$f":"IF(ISBLANK(sel_Field_Pest_History\\PBND),\"\",sel_Field_Pest_History\\PBND)","v":"Present but not a problem with good fungicide program"}]
["Crop\\Planting_Date",2,"182 to 196",10,null,null,null,"Field\\Intercrop",15,5,5,{"$f":"IF(ISBLANK(sel_Field\\Intercrop),\"\",sel_Field\\Intercrop)","v":"None"}]
["Crop\\Planting_Date",3,"197 to 365",5,null,null,null,"Field_Crop_Rotation\\1_Crop_Season_Ago",12,1,1,{"$f":"IF(ISBLANK(sel_Field_Crop_Rotation\\1_Crop_Season_Ago),\"\",sel_Field_Crop_Rotation\\1_Crop_Season_Ago)","v":"Cotton"}]
["Crop\\Plants_per_1m_Row",1,"6 or fewer",25,null,null,null,"Field\\Tillage",10,5,10,{"$f":"IF(ISBLANK(sel_Field\\Tillage),\"\",sel_Field\\Tillage)","v":"Conventional"}]
["Crop\\Plants_per_1m_Row",2,"7 to 12",15,null,null,null,"Field_Crop_Rotation\\2_Crop_Seasons_Ago",8,1,1,{"$f":"IF(ISBLANK(sel_Field_Crop_Rotation\\2_Crop_Seasons_Ago),\"\",sel_Field_Crop_Rotation\\2_Crop_Seasons_Ago)","v":"Cotton"}]
["Crop\\Plants_per_1m_Row",3,"13 or more",5,null,null,null,"Field_Crop_Rotation\\3_Crop_Seasons_Ago",4,1,4,{"$f":"IF(ISBLANK(sel_Field_Crop_Rotation\\3_Crop_Seasons_Ago),\"\",sel_Field_Crop_Rotation\\3_Crop_Seasons_Ago)","v":"Groundnut"}]
["Field\\Intercrop",1,"Cluster Bean|Cotton|Maize|Pearl Millet|Pulses|Sorghum",15,null,null,null,"Field_Crop_Rotation\\4_Crop_Seasons_Ago",2,1,2,{"$f":"IF(ISBLANK(sel_Field_Crop_Rotation\\4_Crop_Seasons_Ago),\"\",sel_Field_Crop_Rotation\\4_Crop_Seasons_Ago)","v":"Groundnut"}]
["Field\\Intercrop",2,"None",5]
["Field\\Tillage",1,"Conventional|Deep (Improved)",10,null,null,null,"Total",{"$f":"SUMIF(I3:I12,\">0\")","v":146},{"$f":"SUMIF(J3:J12,\">0\")","v":39},{"$f":"MAX(PBND_MinRiskIndex,SUM(K3:K12))","v":68}]
["Field\\Tillage",2,"Strip into killed cover crop or previous crop residue",5]
["Field_Crop_Rotation\\1_Crop_Season_Ago",1,"Groundnut|Melons|Vegetables",12,null,null,null,"High Risk Index",90]
["Field_Crop_Rotation\\1_Crop_Season_Ago",2,"Chickpea|Cotton|Cumin|Fodder|Garlic|Onion|Pearl Millet|Wheat",1,null,null,null,"Moderate Risk Index",70]
["Field_Crop_Rotation\\2_Crop_Seasons_Ago",1,"Groundnut|Melons|Vegetables",8]
["Field_Crop_Rotation\\2_Crop_Seasons_Ago",2,"Chickpea|Cotton|Cumin|Fodder|Garlic|Onion|Pearl Millet|Wheat",1]
["Field_Crop_Rotation\\3_Crop_Seasons_Ago",1,"Groundnut|Melons|Vegetables",4]
["Field_Crop_Rotation\\3_Crop_Seasons_Ago",2,"Chickpea|Cotton|Cumin|Fodder|Garlic|Onion|Pearl Millet|Wheat",1]
["Field_Crop_Rotation\\4_Crop_Seasons_Ago",1,"Groundnut|Melons|Vegetables",2]
["Field_Crop_Rotation\\4_Crop_Seasons_Ago",2,"Chickpea|Cotton|Cumin|Fodder|Garlic|Onion|Pearl Millet|Wheat",1]
["Field_Pest_History\\PBND",1,"Problem even with good fungicide program",20]
["Field_Pest_History\\PBND",2,"Present but not a problem with good fungicide program",10]
["Field_Pest_History\\PBND",3,"None (Peanuts never grown)",5]

{"sheet":"RUST","index":14,"n_rows":24,"n_cols":12,"rows_kept":24,"cut":false,"hidden":true,"merged":[[0,0,0,3]]}
["Rust"]
["Category","Risk Level","Risk Level Description","Points",null,null,null,"Category","Max","Min","Risk","Selection"]
["Crop\\Cultivar",1,"GG 20",30,null,null,null,"Crop\\Cultivar",30,10,{"$f":"getRiskValue(\"A:A\",H3,J3,L3,\"Single\")","v":10},{"$f":"IF(ISBLANK(sel_Crop\\Cultivar),\"\",sel_Crop\\Cultivar)","v":"ICG FDRS 10"}]
["Crop\\Cultivar",2,"BG 3|CSMG 84-1|GG 2|GG 7|ICGS 44|ICGS 76|M 335|M 522|Somnath",20,null,null,null,"Field\\Intercrop",15,5,5,{"$f":"IF(ISBLANK(sel_Field\\Intercrop),\"\",sel_Field\\Intercrop)","v":"None"}]
["Crop\\Cultivar",3,"ICG FDRS 10|ICGV 86590|R 8808|R 9201|TG 37 A|TPG-41",10,null,null,null,"Field\\Irrigation",15,5,15,{"$f":"IF(ISBLANK(sel_Field\\Irrigation),\"\",sel_Field\\Irrigation)","v":"Irrigated (Recommended)"}]
["Crop\\Planting_Date",1,"171 to 365",10,null,null,null,"Field\\Tillage",15,5,15,{"$f":"IF(ISBLANK(sel_Field\\Tillage),\"\",sel_Field\\Tillage)","v":"Conventional"}]
["Crop\\Planting_Date",2,"001 to 170",5,null,null,null,"Field_Crop_Rotation\\1_Crop_Season_Ago",15,3,3,{"$f":"IF(ISBLANK(sel_Field_Crop_Rotation\\1_Crop_Season_Ago),\"\",sel_Field_Crop_Rotation\\1_Crop_Season_Ago)","v":"Cotton"}]
["Field\\Intercrop",1,"Cluster Bean|Cotton|Maize|Pearl Millet|Pulses|Sorghum",15,null,null,null,"Field_Pest_History\\Rust",15,5,10,{"$f":"IF(ISBLANK(sel_Field_Pest_History\\Rust),\"\",sel_Field_Pest_History\\Rust)","v":"Present but not a problem with good fungicide program"}]
["Field\\Intercrop",2,"None",5,null,null,null,"Crop\\Planting_Date",10,5,{"$f":"getRiskValue(\"A:A\",H9,J9,L9,\"Date\")","v":5},{"$f":"IF(ISBLANK(sel_Crop\\Planting_Date),\"\",sel_Crop\\Planting_Date)","v":"2022-05-15"}]
["Field\\Irrigation",1,"Irrigated (Recommended)|Irrigated",15,null,null,null,"Field_Crop_Rotation\\2_Crop_Seasons_Ago",10,2,{"$f":"getRiskValue(\"A:A\",H10,J10,L10,\"Single\")","v":2},{"$f":"IF(ISBLANK(sel_Field_Crop_Rotation\\2_Crop_Seasons_Ago),\"\",sel_Field_Crop_Rotation\\2_Crop_Seasons_Ago)","v":"Cotton"}]
["Field\\Irrigation",2,"Non-Irrigated",5,null,null,null,"Field_Crop_Rotation\\3_Crop_Seasons_Ago",5,2,{"$f":"getRiskValue(\"A:A\",H11,J11,L11,\"Single\")","v":5},{"$f":"IF(ISBLANK(sel_Field_Crop_Rotation\\3_Crop_Seasons_Ago),\"\",sel_Field_Crop_Rotation\\3_Crop_Seasons_Ago)","v":"Groundnut"}]
["Field\\Tillage",1,"Conventional|Deep (Improved)",15,null,null,null,"Field_Crop_Rotation\\4_Crop_Seasons_Ago",3,1,{"$f":"getRiskValue(\"A:A\",H12,J12,L12,\"Single\")","v":3},{"$f":"IF(ISBLANK(sel_Field_Crop_Rotation\\4_Crop_Seasons_Ago),\"\",sel_Field_Crop_Rotation\\4_Crop_Seasons_Ago)","v":"Groundnut"}]
["Field\\Tillage",2,"Strip into killed cover crop or previous crop residue",5]
["Field_Crop_Rotation\\1_Crop_Season_Ago",1,"Groundnut",15,null,null,null,"Total",{"$f":"SUMIF(I3:I12,\">0\")","v":133},{"$f":"SUMIF(J3:J12,\">0\")","v":43},{"$f":"MAX(RUST_MinRiskIndex,SUM(K3:K12))","v":73}]
["Field_Crop_Rotation\\1_Crop_Season_Ago",2,"Chickpea|Cotton|Cumin|Fodder|Garlic|Melons|Onion|Pearl Millet|Vegetables|Wheat",3]
["Field_Crop_Rotation\\2_Crop_Seasons_Ago",1,"Groundnut",10,null,null,null,"High Risk Index",85]
["Field_Crop_Rotation\\2_Crop_Seasons_Ago",2,"Chickpea|Cotton|Cumin|Fodder|Garlic|Melons|Onion|Pearl Millet|Vegetables|Wheat",2,null,null,null,"Moderate Risk Index",60]
["Field_Crop_Rotation\\3_Crop_Seasons_Ago",1,"Groundnut",5]
["Field_Crop_Rotation\\3_Crop_Seasons_Ago",2,"Chickpea|Cotton|Cumin|Fodder|Garlic|Melons|Onion|Pearl Millet|Vegetables|Wheat",2]
["Field_Crop_Rotation\\4_Crop_Seasons_Ago",1,"Groundnut",3]
["Field_Crop_Rotation\\4_Crop_Seasons_Ago",2,"Chickpea|Cotton|Cumin|Fodder|Garlic|Melons|Onion|Pearl Millet|Vegetables|Wheat",1]
["Field_Pest_History\\Rust",1,"Problem even with good fungicide program",15]
["Field_Pest_History\\Rust",2,"Present but not a problem with good fungicide program",10]
["Field_Pest_History\\Rust",3,"None (Groundnut never grown)",5]

{"sheet":"AFLA","index":15,"n_rows":25,"n_cols":12,"rows_kept":25,"cut":false,"hidden":true,"merged":[[0,0,0,3]]}
["Aflaroot"]
["Category","Risk Level","Risk Level Description","Points",null,null,null,"Category","Max","Min","Risk","Selection"]
["Crop\\Cultivar",1,"GG 20",30,null,null,null,"Crop\\Cultivar",30,10,{"$f":"getRiskValue(\"A:A\",H3,J3,L3,\"Single\")","v":10},{"$f":"IF(ISBLANK(sel_Crop\\Cultivar),\"\",sel_Crop\\Cultivar)","v":"ICG FDRS 10"}]
["Crop\\Cultivar",2,"BG 3|CSMG 84-1|GG 2|GG 7|ICGS 44|ICGS 76|M 335|M 522|Somnath",20,null,null,null,"Field_Pest_History\\Aflaroot",20,5,15,{"$f":"IF(ISBLANK(sel_Field_Pest_History\\Aflaroot),\"\",sel_Field_Pest_History\\Aflaroot)","v":"Present but not a problem with good fungicide/biocontrol program"}]
["Crop\\Cultivar",3,"ICG FDRS 10|ICGV 86590|R 8808|R 9201|TG 37 A|TPG-41",10,null,null,null,"Crop\\Plants_per_1m_Row",15,5,15,{"$f":"IF(ISBLANK(sel_Crop\\Plants_per_1m_Row),\"\",sel_Crop\\Plants_per_1m_Row)","v":"13 or more"}]
["Crop\\Plants_per_1m_Row",1,"13 or more",15,null,null,null,"Field\\Irrigation",15,5,5,{"$f":"IF(ISBLANK(sel_Field\\Irrigation),\"\",sel_Field\\Irrigation)","v":"Irrigated (Recommended)"}]
["Crop\\Plants_per_1m_Row",2,"7 to 12",10,null,null,null,"Field\\Tillage",15,5,15,{"$f":"IF(ISBLANK(sel_Field\\Tillage),\"\",sel_Field\\Tillage)","v":"Conventional"}]
["Crop\\Plants_per_1m_Row",3,"6 or fewer",5,null,null,null,"Field_Crop_Rotation\\1_Crop_Season_Ago",12,1,1,{"$f":"IF(ISBLANK(sel_Field_Crop_Rotation\\1_Crop_Season_Ago),\"\",sel_Field_Crop_Rotation\\1_Crop_Season_Ago)","v":"Cotton"}]
["Field\\Irrigation",1,"Non-Irrigated",15,null,null,null,"Field_Crop_Rotation\\2_Crop_Seasons_Ago",8,1,1,{"$f":"IF(ISBLANK(sel_Field_Crop_Rotation\\2_Crop_Seasons_Ago),\"\",sel_Field_Crop_Rotation\\2_Crop_Seasons_Ago)","v":"Cotton"}]
["Field\\Irrigation",2,"Irrigated",10,null,null,null,"Field_Crop_Rotation\\3_Crop_Seasons_Ago",4,1,4,{"$f":"IF(ISBLANK(sel_Field_Crop_Rotation\\3_Crop_Seasons_Ago),\"\",sel_Field_Crop_Rotation\\3_Crop_Seasons_Ago)","v":"Groundnut"}]
["Field\\Irrigation",3,"Irrigated (Recommended)",5,null,null,null,"Field_Crop_Rotation\\4_Crop_Seasons_Ago",2,1,2,{"$f":"IF(ISBLANK(sel_Field_Crop_Rotation\\4_Crop_Seasons_Ago),\"\",sel_Field_Crop_Rotation\\4_Crop_Seasons_Ago)","v":"Groundnut"}]
["Field\\Tillage",1,"Conventional",15]
["Field\\Tillage",2,"Strip into killed cover crop or previous crop residue",10,null,null,null,"Total",{"$f":"SUMIF(I3:I11,\">0\")","v":121},{"$f":"SUMIF(J3:J11,\">0\")","v":34},{"$f":"MAX(AFLA_MinRiskIndex,SUM(K3:K11))","v":68}]
["Field\\Tillage",3,"Deep (Improved)",5]
["Field_Crop_Rotation\\1_Crop_Season_Ago",1,"Groundnut|Melons|Vegetables",12,null,null,null,"High Risk Index",85]
["Field_Crop_Rotation\\1_Crop_Season_Ago",2,"Chickpea|Cotton|Cumin|Fodder|Garlic|Onion|Pearl Millet|Wheat",1,null,null,null,"Moderate Risk Index",65]
["Field_Crop_Rotation\\2_Crop_Seasons_Ago",1,"Groundnut|Melons|Vegetables",8]
["Field_Crop_Rotation\\2_Crop_Seasons_Ago",2,"Chickpea|Cotton|Cumin|Fodder|Garlic|Onion|Pearl Millet|Wheat",1]
["Field_Crop_Rotation\\3_Crop_Seasons_Ago",1,"Groundnut|Melons|Vegetables",4]
["Field_Crop_Rotation\\3_Crop_Seasons_Ago",2,"Chickpea|Cotton|Cumin|Fodder|Garlic|Onion|Pearl Millet|Wheat",1]
["Field_Crop_Rotation\\4_Crop_Seasons_Ago",1,"Groundnut|Melons|Vegetables",2]
["Field_Crop_Rotation\\4_Crop_Seasons_Ago",2,"Chickpea|Cotton|Cumin|Fodder|Garlic|Onion|Pearl Millet|Wheat",1]
["Field_Pest_History\\Aflaroot",1,"Problem even with good fungicide/biocontrol program",20]
["Field_Pest_History\\Aflaroot",2,"Present but not a problem with good fungicide/biocontrol program",15]
["Field_Pest_History\\Aflaroot",3,"None (Groundnut never grown)",5]

{"sheet":"CR","index":16,"n_rows":25,"n_cols":12,"rows_kept":25,"cut":false,"hidden":true,"merged":[[0,0,0,3]]}
["Collar Rot"]
["Category","Risk Level","Risk Level Description","Points",null,null,null,"Category","Max","Min","Risk","Selection"]
["Crop\\Cultivar",1,"GG 20",30,null,null,null,"Crop\\Cultivar",30,10,{"$f":"getRiskValue(\"A:A\",H3,J3,L3,\"Single\")","v":10},{"$f":"IF(ISBLANK(sel_Crop\\Cultivar),\"\",sel_Crop\\Cultivar)","v":"ICG FDRS 10"}]
["Crop\\Cultivar",2,"BG 3|CSMG 84-1|GG 2|GG 7|ICGS 44|ICGS 76|M 335|M 522|Somnath",20,null,null,null,"Field_Pest_History\\Collar_Rot",20,5,15,{"$f":"IF(ISBLANK(sel_Field_Pest_History\\Collar_Rot),\"\",sel_Field_Pest_History\\Collar_Rot)","v":"Present but not a problem with good fungicide/biocontrol program"}]
["Crop\\Cultivar",3,"ICG FDRS 10|ICGV 86590|R 8808|R 9201|TG 37 A|TPG-41",10,null,null,null,"Crop\\Plants_per_1m_Row",15,5,15,{"$f":"IF(ISBLANK(sel_Crop\\Plants_per_1m_Row),\"\",sel_Crop\\Plants_per_1m_Row)","v":"13 or more"}]
["Crop\\Plants_per_1m_Row",1,"13 or more",15,null,null,null,"Field\\Irrigation",15,5,5,{"$f":"IF(ISBLANK(sel_Field\\Irrigation),\"\",sel_Field\\Irrigation)","v":"Irrigated (Recommended)"}]
["Crop\\Plants_per_1m_Row",2,"7 to 12",10,null,null,null,"Field\\Tillage",15,5,15,{"$f":"IF(ISBLANK(sel_Field\\Tillage),\"\",sel_Field\\Tillage)","v":"Conventional"}]
["Crop\\Plants_per_1m_Row",3,"6 or fewer",5,null,null,null,"Field_Crop_Rotation\\1_Crop_Season_Ago",12,1,1,{"$f":"IF(ISBLANK(sel_Field_Crop_Rotation\\1_Crop_Season_Ago),\"\",sel_Field_Crop_Rotation\\1_Crop_Season_Ago)","v":"Cotton"}]
["Field\\Irrigation",1,"Non-Irrigated",15,null,null,null,"Field_Crop_Rotation\\2_Crop_Seasons_Ago",8,1,1,{"$f":"IF(ISBLANK(sel_Field_Crop_Rotation\\2_Crop_Seasons_Ago),\"\",sel_Field_Crop_Rotation\\2_Crop_Seasons_Ago)","v":"Cotton"}]
["Field\\Irrigation",2,"Irrigated",10,null,null,null,"Field_Crop_Rotation\\3_Crop_Seasons_Ago",4,1,4,{"$f":"IF(ISBLANK(sel_Field_Crop_Rotation\\3_Crop_Seasons_Ago),\"\",sel_Field_Crop_Rotation\\3_Crop_Seasons_Ago)","v":"Groundnut"}]
["Field\\Irrigation",3,"Irrigated (Recommended)",5,null,null,null,"Field_Crop_Rotation\\4_Crop_Seasons_Ago",2,1,2,{"$f":"IF(ISBLANK(sel_Field_Crop_Rotation\\4_Crop_Seasons_Ago),\"\",sel_Field_Crop_Rotation\\4_Crop_Seasons_Ago)","v":"Groundnut"}]
["Field\\Tillage",1,"Conventional",15]
["Field\\Tillage",2,"Strip into killed cover crop or previous crop residue",10,null,null,null,"Total",{"$f":"SUMIF(I3:I11,\">0\")","v":121},{"$f":"SUMIF(J3:J11,\">0\")","v":34},{"$f":"MAX(CR_MinRiskIndex,SUM(K3:K11))","v":68}]
["Field\\Tillage",3,"Deep (Improved)",5]
["Field_Crop_Rotation\\1_Crop_Season_Ago",1,"Groundnut|Melons|Vegetables",12,null,null,null,"High Risk Index",85]
["Field_Crop_Rotation\\1_Crop_Season_Ago",2,"Chickpea|Cotton|Cumin|Fodder|Garlic|Onion|Pearl Millet|Wheat",1,null,null,null,"Moderate Risk Index",65]
["Field_Crop_Rotation\\2_Crop_Seasons_Ago",1,"Groundnut|Melons|Vegetables",8]
["Field_Crop_Rotation\\2_Crop_Seasons_Ago",2,"Chickpea|Cotton|Cumin|Fodder|Garlic|Onion|Pearl Millet|Wheat",1]
["Field_Crop_Rotation\\3_Crop_Seasons_Ago",1,"Groundnut|Melons|Vegetables",4]
["Field_Crop_Rotation\\3_Crop_Seasons_Ago",2,"Chickpea|Cotton|Cumin|Fodder|Garlic|Onion|Pearl Millet|Wheat",1]
["Field_Crop_Rotation\\4_Crop_Seasons_Ago",1,"Groundnut|Melons|Vegetables",2]
["Field_Crop_Rotation\\4_Crop_Seasons_Ago",2,"Chickpea|Cotton|Cumin|Fodder|Garlic|Onion|Pearl Millet|Wheat",1]
["Field_Pest_History\\Collar_Rot",1,"Problem even with good fungicide/biocontrol program",20]
["Field_Pest_History\\Collar_Rot",2,"Present but not a problem with good fungicide/biocontrol program",15]
["Field_Pest_History\\Collar_Rot",3,"None (Peanut never grown)",5]

{"sheet":"SR","index":17,"n_rows":30,"n_cols":12,"rows_kept":30,"cut":false,"hidden":true,"merged":[[0,0,0,3]]}
["Stem Rot"]
["Category","Risk Level","Risk Level Description","Points",null,null,null,"Category","Max","Min","Risk","Selection"]
["Crop\\Cultivar",1,"GG 20",30,null,null,null,"Crop\\Cultivar",30,10,{"$f":"getRiskValue(\"A:A\",H3,J3,L3,\"Single\")","v":10},{"$f":"IF(ISBLANK(sel_Crop\\Cultivar),\"\",sel_Crop\\Cultivar)","v":"ICG FDRS 10"}]
["Crop\\Cultivar",2,"BG 3|CSMG 84-1|GG 2|GG 7|ICGS 44|ICGS 76|M 335|M 522|Somnath",20,null,null,null,"Field_Pest_History\\Stem_Rot",20,5,{"$f":"getRiskValue(\"A:A\",H4,J4,L4,\"Single\")","v":15},{"$f":"IF(ISBLANK(sel_Field_Pest_History\\Stem_Rot),\"\",sel_Field_Pest_History\\Stem_Rot)","v":"Present but not a problem with good fungicide/biocontrol program"}]
["Crop\\Cultivar",3,"ICG FDRS 10|ICGV 86590|R 8808|R 9201|TG 37 A|TPG-41",10,null,null,null,"Crop\\Plants_per_1m_Row",15,5,{"$f":"getRiskValue(\"A:A\",H5,J5,L5,\"Single\")","v":15},{"$f":"IF(ISBLANK(sel_Crop\\Plants_per_1m_Row),\"\",sel_Crop\\Plants_per_1m_Row)","v":"13 or more"}]
["Crop\\Plants_per_1m_Row",1,"13 or more",15,null,null,null,"Field\\Irrigation",15,5,{"$f":"getRiskValue(\"A:A\",H6,J6,L6,\"Single\")","v":5},{"$f":"IF(ISBLANK(sel_Field\\Irrigation),\"\",sel_Field\\Irrigation)","v":"Irrigated (Recommended)"}]
["Crop\\Plants_per_1m_Row",2,"7 to 12",10,null,null,null,"Field\\Soil_pH",15,5,{"$f":"getRiskValue(\"A:A\",H7,J7,L7,\"pH\")","v":10},{"$f":"IF(ISBLANK(sel_Field\\Soil_pH),\"\",sel_Field\\Soil_pH)","v":7}]
["Crop\\Plants_per_1m_Row",3,"6 or fewer",5,null,null,null,"Field\\Tillage",15,5,{"$f":"getRiskValue(\"A:A\",H8,J8,L8,\"Single\")","v":15},{"$f":"IF(ISBLANK(sel_Field\\Tillage),\"\",sel_Field\\Tillage)","v":"Conventional"}]
["Crop\\Row_Pattern",1,"Single (75 - 100 cm)",10,null,null,null,"Field_Crop_Rotation\\1_Crop_Season_Ago",12,1,1,{"$f":"IF(ISBLANK(sel_Field_Crop_Rotation\\1_Crop_Season_Ago),\"\",sel_Field_Crop_Rotation\\1_Crop_Season_Ago)","v":"Cotton"}]
["Crop\\Row_Pattern",2,"Twin (15 - 25 cm)",5,null,null,null,"Crop\\Row_Pattern",10,5,5,{"$f":"IF(ISBLANK(sel_Crop\\Row_Pattern),\"\",sel_Crop\\Row_Pattern)","v":"Twin (15 - 25 cm)"}]
["Field\\Irrigation",1,"Non-Irrigated",15,null,null,null,"Field_Crop_Rotation\\2_Crop_Seasons_Ago",8,1,1,{"$f":"IF(ISBLANK(sel_Field_Crop_Rotation\\2_Crop_Seasons_Ago),\"\",sel_Field_Crop_Rotation\\2_Crop_Seasons_Ago)","v":"Cotton"}]
["Field\\Irrigation",2,"Irrigated",10,null,null,null,"Field_Crop_Rotation\\3_Crop_Seasons_Ago",4,1,4,{"$f":"IF(ISBLANK(sel_Field_Crop_Rotation\\3_Crop_Seasons_Ago),\"\",sel_Field_Crop_Rotation\\3_Crop_Seasons_Ago)","v":"Groundnut"}]
["Field\\Irrigation",3,"Irrigated (Recommended)",5,null,null,null,"Field_Crop_Rotation\\4_Crop_Seasons_Ago",2,1,2,{"$f":"IF(ISBLANK(sel_Field_Crop_Rotation\\4_Crop_Seasons_Ago),\"\",sel_Field_Crop_Rotation\\4_Crop_Seasons_Ago)","v":"Groundnut"}]
["Field\\Soil_pH",1,"5.9 or lower",15]
["Field\\Soil_pH",2,"6.0 to 7.9",10,null,null,null,"Total",{"$f":"SUMIF(I3:I13,\">0\")","v":146},{"$f":"SUMIF(J3:J13,\">0\")","v":44},{"$f":"MAX(SR_MinRiskIndex,SUM(K3:K13))","v":83}]
["Field\\Soil_pH",3,"8.0 or higher",5]
["Field\\Tillage",1,"Conventional",15,null,null,null,"High Risk Index",105]
["Field\\Tillage",2,"Strip into killed cover crop or previous crop residue",10,null,null,null,"Moderate Risk Index",85]
["Field\\Tillage",3,"Deep (Improved)",5]
["Field_Crop_Rotation\\1_Crop_Season_Ago",1,"Groundnut|Melons|Vegetables",12]
["Field_Crop_Rotation\\1_Crop_Season_Ago",2,"Chickpea|Cotton|Cumin|Fodder|Garlic|Onion|Pearl Millet|Wheat",1]
["Field_Crop_Rotation\\2_Crop_Seasons_Ago",1,"Groundnut|Melons|Vegetables",8]
["Field_Crop_Rotation\\2_Crop_Seasons_Ago",2,"Chickpea|Cotton|Cumin|Fodder|Garlic|Onion|Pearl Millet|Wheat",1]
["Field_Crop_Rotation\\3_Crop_Seasons_Ago",1,"Groundnut|Melons|Vegetables",4]
["Field_Crop_Rotation\\3_Crop_Seasons_Ago",2,"Chickpea|Cotton|Cumin|Fodder|Garlic|Onion|Pearl Millet|Wheat",1]
["Field_Crop_Rotation\\4_Crop_Seasons_Ago",1,"Groundnut|Melons|Vegetables",2]
["Field_Crop_Rotation\\4_Crop_Seasons_Ago",2,"Chickpea|Cotton|Cumin|Fodder|Garlic|Onion|Pearl Millet|Wheat",1]
["Field_Pest_History\\Stem_Rot",1,"Problem even with good fungicide/biocontrol program",20]
["Field_Pest_History\\Stem_Rot",2,"Present but not a problem with good fungicide/biocontrol program",15]
["Field_Pest_History\\Stem_Rot",3,"None (Groundnut never grown)",5]

{"sheet":"DF","index":18,"n_rows":29,"n_cols":12,"rows_kept":29,"cut":false,"hidden":true,"merged":[[0,0,0,3]]}
["Defoliaters"]
["Category","Risk Level","Risk Level Description","Points",null,null,null,"Category","Max","Min","Risk","Selection"]
["Crop\\Cultivar",1,"GG 20",30,null,null,null,"Crop\\Cultivar",30,10,{"$f":"getRiskValue(\"A:A\",H3,J3,L3,\"Single\")","v":10},{"$f":"IF(ISBLANK(sel_Crop\\Cultivar),\"\",sel_Crop\\Cultivar)","v":"ICG FDRS 10"}]
["Crop\\Cultivar",2,"BG 3|CSMG 84-1|GG 2|GG 7|ICGS 44|ICGS 76|M 335|M 522|Somnath",20,null,null,null,"Field_Pest_History\\Defoliators",20,5,15,{"$f":"IF(ISBLANK(sel_Field_Pest_History\\Defoliators),\"\",sel_Field_Pest_History\\Defoliators)","v":"Present but not a problem with good pesticide program"}]
["Crop\\Cultivar",3,"ICG FDRS 10|ICGV 86590|R 8808|R 9201|TG 37 A|TPG-41",10,null,null,null,"Natural_Pest_Enemy_Population\\Defoliators",20,5,20,{"$f":"IF(ISBLANK(sel_Natural_Pest_Enemy_Population\\Defoliators),\"\",sel_Natural_Pest_Enemy_Population\\Defoliators)","v":"Low/Below Average"}]
["Crop\\Plants_per_1m_Row",1,"13 or more",15,null,null,null,"Crop\\Plants_per_1m_Row",15,5,15,{"$f":"IF(ISBLANK(sel_Crop\\Plants_per_1m_Row),\"\",sel_Crop\\Plants_per_1m_Row)","v":"13 or more"}]
["Crop\\Plants_per_1m_Row",2,"7 to 12",10,null,null,null,"Field\\Intercrop",15,5,15,{"$f":"IF(ISBLANK(sel_Field\\Intercrop),\"\",sel_Field\\Intercrop)","v":"None"}]
["Crop\\Plants_per_1m_Row",3,"6 or fewer",5,null,null,null,"Field\\Irrigation",15,5,5,{"$f":"IF(ISBLANK(sel_Field\\Irrigation),\"\",sel_Field\\Irrigation)","v":"Irrigated (Recommended)"}]
["Field\\Intercrop",1,"None",15,null,null,null,"Field_Crop_Rotation\\1_Crop_Season_Ago",12,1,1,{"$f":"IF(ISBLANK(sel_Field_Crop_Rotation\\1_Crop_Season_Ago),\"\",sel_Field_Crop_Rotation\\1_Crop_Season_Ago)","v":"Cotton"}]
["Field\\Intercrop",2,"Cluster Bean|Cotton|Maize|Pearl Millet|Pulses|Sorghum",5,null,null,null,"Field\\Tillage",10,5,10,{"$f":"IF(ISBLANK(sel_Field\\Tillage),\"\",sel_Field\\Tillage)","v":"Conventional"}]
["Field\\Irrigation",1,"Non-Irrigated",15,null,null,null,"Field_Crop_Rotation\\2_Crop_Seasons_Ago",8,1,1,{"$f":"IF(ISBLANK(sel_Field_Crop_Rotation\\2_Crop_Seasons_Ago),\"\",sel_Field_Crop_Rotation\\2_Crop_Seasons_Ago)","v":"Cotton"}]
["Field\\Irrigation",2,"Irrigated",10,null,null,null,"Field_Crop_Rotation\\3_Crop_Seasons_Ago",4,1,4,{"$f":"IF(ISBLANK(sel_Field_Crop_Rotation\\3_Crop_Seasons_Ago),\"\",sel_Field_Crop_Rotation\\3_Crop_Seasons_Ago)","v":"Groundnut"}]
["Field\\Irrigation",3,"Irrigated (Recommended)",5,null,null,null,"Field_Crop_Rotation\\4_Crop_Seasons_Ago",2,1,2,{"$f":"IF(ISBLANK(sel_Field_Crop_Rotation\\4_Crop_Seasons_Ago),\"\",sel_Field_Crop_Rotation\\4_Crop_Seasons_Ago)","v":"Groundnut"}]
["Field\\Tillage",1,"Conventional|Deep (Improved)",10]
["Field\\Tillage",2,"Strip into killed cover crop or previous crop residue",5,null,null,null,"Total",{"$f":"SUMIF(I3:I13,\">0\")","v":151},{"$f":"SUMIF(J3:J13,\">0\")","v":44},{"$f":"MAX(DF_MinRiskIndex,SUM(K3:K13))","v":98}]
["Field_Crop_Rotation\\1_Crop_Season_Ago",1,"Groundnut|Melons|Vegetables",12]
["Field_Crop_Rotation\\1_Crop_Season_Ago",2,"Chickpea|Cotton|Cumin|Fodder|Garlic|Onion|Pearl Millet|Wheat",1,null,null,null,"High Risk Index",115]
["Field_Crop_Rotation\\2_Crop_Seasons_Ago",1,"Groundnut|Melons|Vegetables",8,null,null,null,"Moderate Risk Index",85]
["Field_Crop_Rotation\\2_Crop_Seasons_Ago",2,"Chickpea|Cotton|Cumin|Fodder|Garlic|Onion|Pearl Millet|Wheat",1]
["Field_Crop_Rotation\\3_Crop_Seasons_Ago",1,"Groundnut|Melons|Vegetables",4]
["Field_Crop_Rotation\\3_Crop_Seasons_Ago",2,"Chickpea|Cotton|Cumin|Fodder|Garlic|Onion|Pearl Millet|Wheat",1]
["Field_Crop_Rotation\\4_Crop_Seasons_Ago",1,"Groundnut|Melons|Vegetables",2]
["Field_Crop_Rotation\\4_Crop_Seasons_Ago",2,"Chickpea|Cotton|Cumin|Fodder|Garlic|Onion|Pearl Millet|Wheat",1]
["Field_Pest_History\\Defoliators",1,"Problem even with good pesticide program",20]
["Field_Pest_History\\Defoliators",2,"Present but not a problem with good pesticide program",15]
["Field_Pest_History\\Defoliators",3,"None (Groundnut never grown)",5]
["Natural_Pest_Enemy_Population\\Defoliators",1,"Low/Below Average",20]
["Natural_Pest_Enemy_Population\\Defoliators",2,"Average",10]
["Natural_Pest_Enemy_Population\\Defoliators",3,"Good/Above Average",5]

{"sheet":"SU","index":19,"n_rows":29,"n_cols":12,"rows_kept":29,"cut":false,"hidden":true,"merged":[[0,0,0,3]]}
["Sucking Pests"]
["Category","Risk Level","Risk Level Description","Points",null,null,null,"Category","Max","Min","Risk","Selection"]
["Crop\\Cultivar",1,"GG 20",30,null,null,null,"Crop\\Cultivar",30,10,{"$f":"getRiskValue(\"A:A\",H3,J3,L3,\"Single\")","v":10},{"$f":"IF(ISBLANK(sel_Crop\\Cultivar),\"\",sel_Crop\\Cultivar)","v":"ICG FDRS 10"}]
["Crop\\Cultivar",2,"BG 3|CSMG 84-1|GG 2|GG 7|ICGS 44|ICGS 76|M 335|M 522|Somnath",20,null,null,null,"Field_Pest_History\\Sucking_Pests",20,5,15,{"$f":"IF(ISBLANK(sel_Field_Pest_History\\Sucking_Pests),\"\",sel_Field_Pest_History\\Sucking_Pests)","v":"Present but not a problem with good pesticide program"}]
["Crop\\Cultivar",3,"ICG FDRS 10|ICGV 86590|R 8808|R 9201|TG 37 A|TPG-41",10,null,null,null,"Natural_Pest_Enemy_Population\\Sucking_Pests",20,5,20,{"$f":"IF(ISBLANK(sel_Natural_Pest_Enemy_Population\\Sucking_Pests),\"\",sel_Natural_Pest_Enemy_Population\\Sucking_Pests)","v":"Low/Below Average"}]
["Crop\\Plants_per_1m_Row",1,"13 or more",15,null,null,null,"Crop\\Plants_per_1m_Row",15,5,15,{"$f":"IF(ISBLANK(sel_Crop\\Plants_per_1m_Row),\"\",sel_Crop\\Plants_per_1m_Row)","v":"13 or more"}]
["Crop\\Plants_per_1m_Row",2,"7 to 12",10,null,null,null,"Field\\Intercrop",15,5,15,{"$f":"IF(ISBLANK(sel_Field\\Intercrop),\"\",sel_Field\\Intercrop)","v":"None"}]
["Crop\\Plants_per_1m_Row",3,"6 or fewer",5,null,null,null,"Field\\Irrigation",15,5,5,{"$f":"IF(ISBLANK(sel_Field\\Irrigation),\"\",sel_Field\\Irrigation)","v":"Irrigated (Recommended)"}]
["Field\\Intercrop",1,"None",15,null,null,null,"Field_Crop_Rotation\\1_Crop_Season_Ago",12,1,1,{"$f":"IF(ISBLANK(sel_Field_Crop_Rotation\\1_Crop_Season_Ago),\"\",sel_Field_Crop_Rotation\\1_Crop_Season_Ago)","v":"Cotton"}]
["Field\\Intercrop",2,"Cluster Bean|Cotton|Maize|Pearl Millet|Pulses|Sorghum",5,null,null,null,"Field\\Tillage",10,5,10,{"$f":"IF(ISBLANK(sel_Field\\Tillage),\"\",sel_Field\\Tillage)","v":"Conventional"}]
["Field\\Irrigation",1,"Non-Irrigated",15,null,null,null,"Field_Crop_Rotation\\2_Crop_Seasons_Ago",8,1,1,{"$f":"IF(ISBLANK(sel_Field_Crop_Rotation\\2_Crop_Seasons_Ago),\"\",sel_Field_Crop_Rotation\\2_Crop_Seasons_Ago)","v":"Cotton"}]
["Field\\Irrigation",2,"Irrigated",10,null,null,null,"Field_Crop_Rotation\\3_Crop_Seasons_Ago",4,1,4,{"$f":"IF(ISBLANK(sel_Field_Crop_Rotation\\3_Crop_Seasons_Ago),\"\",sel_Field_Crop_Rotation\\3_Crop_Seasons_Ago)","v":"Groundnut"}]
["Field\\Irrigation",3,"Irrigated (Recommended)",5,null,null,null,"Field_Crop_Rotation\\4_Crop_Seasons_Ago",2,1,2,{"$f":"IF(ISBLANK(sel_Field_Crop_Rotation\\4_Crop_Seasons_Ago),\"\",sel_Field_Crop_Rotation\\4_Crop_Seasons_Ago)","v":"Groundnut"}]
["Field\\Tillage",1,"Conventional|Deep (Improved)",10]
["Field\\Tillage",2,"Strip into killed cover crop or previous crop residue",5,null,null,null,"Total",{"$f":"SUMIF(I3:I13,\">0\")","v":151},{"$f":"SUMIF(J3:J13,\">0\")","v":44},{"$f":"MAX(SU_MinRiskIndex,SUM(K3:K13))","v":98}]
["Field_Crop_Rotation\\1_Crop_Season_Ago",1,"Groundnut|Melons|Vegetables",12]
["Field_Crop_Rotation\\1_Crop_Season_Ago",2,"Chickpea|Cotton|Cumin|Fodder|Garlic|Onion|Pearl Millet|Wheat",1,null,null,null,"High Risk Index",115]
["Field_Crop_Rotation\\2_Crop_Seasons_Ago",1,"Groundnut|Melons|Vegetables",8,null,null,null,"Moderate Risk Index",85]
["Field_Crop_Rotation\\2_Crop_Seasons_Ago",2,"Chickpea|Cotton|Cumin|Fodder|Garlic|Onion|Pearl Millet|Wheat",1]
["Field_Crop_Rotation\\3_Crop_Seasons_Ago",1,"Groundnut|Melons|Vegetables",4]
["Field_Crop_Rotation\\3_Crop_Seasons_Ago",2,"Chickpea|Cotton|Cumin|Fodder|Garlic|Onion|Pearl Millet|Wheat",1]
["Field_Crop_Rotation\\4_Crop_Seasons_Ago",1,"Groundnut|Melons|Vegetables",2]
["Field_Crop_Rotation\\4_Crop_Seasons_Ago",2,"Chickpea|Cotton|Cumin|Fodder|Garlic|Onion|Pearl Millet|Wheat",1]
["Field_Pest_History\\Sucking_Pests",1,"Problem even with good pesticide program",20]
["Field_Pest_History\\Sucking_Pests",2,"Present but not a problem with good pesticide program",15]
["Field_Pest_History\\Sucking_Pests",3,"None (Groundnut never grown)",5]
["Natural_Pest_Enemy_Population\\Sucking_Pests",1,"Low/Below Average",20]
["Natural_Pest_Enemy_Population\\Sucking_Pests",2,"Average",10]
["Natural_Pest_Enemy_Population\\Sucking_Pests",3,"Good/Above Average",5]

{"sheet":"RKN","index":20,"n_rows":16,"n_cols":12,"rows_kept":16,"cut":false,"hidden":true,"merged":[[0,0,0,3]]}
["Root Knot"]
["Category","Risk Level","Risk Level Description","Points",null,null,null,"Category","Max","Min","Risk","Selection"]
["Field\\Tillage",1,"Conventional|Deep (Improved)",15,null,null,null,"Field_Nematode_Population\\Root_Knot",40,0,{"$f":"getRiskValue(\"A:A\",H3,J3,L3,\"Single\")","v":40},{"$f":"IF(ISBLANK(sel_Field_Nematode_Population\\Root_Knot),\"\",sel_Field_Nematode_Population\\Root_Knot)","v":"High"}]
["Field\\Tillage",2,"Strip into killed cover crop or previous crop residue",5,null,null,null,"Field\\Tillage",15,5,{"$f":"getRiskValue(\"A:A\",H4,J4,L4,\"Single\")","v":15},{"$f":"IF(ISBLANK(sel_Field\\Tillage),\"\",sel_Field\\Tillage)","v":"Conventional"}]
["Field_Crop_Rotation\\1_Crop_Season_Ago",1,"Groundnut|Melons|Vegetables",15,null,null,null,"Field_Crop_Rotation\\1_Crop_Season_Ago",15,3,{"$f":"getRiskValue(\"A:A\",H5,J5,L5,\"Single\")","v":3},{"$f":"IF(ISBLANK(sel_Field_Crop_Rotation\\1_Crop_Season_Ago),\"\",sel_Field_Crop_Rotation\\1_Crop_Season_Ago)","v":"Cotton"}]
["Field_Crop_Rotation\\1_Crop_Season_Ago",2,"Chickpea|Cotton|Cumin|Fodder|Garlic|Onion|Pearl Millet|Wheat",3,null,null,null,"Field_Crop_Rotation\\2_Crop_Seasons_Ago",10,2,{"$f":"getRiskValue(\"A:A\",H6,J6,L6,\"Single\")","v":2},{"$f":"IF(ISBLANK(sel_Field_Crop_Rotation\\2_Crop_Seasons_Ago),\"\",sel_Field_Crop_Rotation\\2_Crop_Seasons_Ago)","v":"Cotton"}]
["Field_Crop_Rotation\\2_Crop_Seasons_Ago",1,"Groundnut|Melons|Vegetables",10,null,null,null,"Pest_Control\\Nematicide",0,-40,{"$f":"getRiskValue(\"A:A\",H7,J7,L7,\"Single\")","v":-25},{"$f":"IF(ISBLANK(sel_Pest_Control\\Nematicide),\"\",sel_Pest_Control\\Nematicide)","v":"Metam Sodium"}]
["Field_Crop_Rotation\\2_Crop_Seasons_Ago",2,"Chickpea|Cotton|Cumin|Fodder|Garlic|Onion|Pearl Millet|Wheat",2]
["Field_Nematode_Population\\Root_Knot",1,"High",40,null,null,null,"Total",{"$f":"SUMIF(I3:I7,\">0\")","v":80},{"$f":"SUMIF(J3:J7,\">0\")","v":10},{"$f":"MAX(RKN_MinRiskIndex,SUM(K3:K7))","v":35}]
["Field_Nematode_Population\\Root_Knot",2,"Moderate",30]
["Field_Nematode_Population\\Root_Knot",3,"Low",25,null,null,null,"High Risk Index",45]
["Field_Nematode_Population\\Root_Knot",4,"None",0,null,null,null,"Moderate Risk Index",35]
["Pest_Control\\Nematicide",1,"None|Phorate 20 G|Thimet 20 G",0]
["Pest_Control\\Nematicide",2,"Temik",-15]
["Pest_Control\\Nematicide",3,"Metam Sodium",-25]
["Pest_Control\\Nematicide",4,"Temik and Metam Sodium",-40]

{"sheet":"RLN","index":21,"n_rows":16,"n_cols":12,"rows_kept":16,"cut":false,"hidden":true,"merged":[[0,0,0,3]]}
["Root-Lesion"]
["Category","Risk Level","Risk Level Description","Points",null,null,null,"Category","Max","Min","Risk","Selection"]
["Field\\Tillage",1,"Conventional|Deep (Improved)",15,null,null,null,"Field_Nematode_Population\\Root_Lesion",40,0,{"$f":"getRiskValue(\"A:A\",H3,J3,L3,\"Single\")","v":40},{"$f":"IF(ISBLANK(sel_Field_Nematode_Population\\Root_Lesion),\"\",sel_Field_Nematode_Population\\Root_Lesion)","v":"High"}]
["Field\\Tillage",2,"Strip into killed cover crop or previous crop residue",5,null,null,null,"Field\\Tillage",15,5,{"$f":"getRiskValue(\"A:A\",H4,J4,L4,\"Single\")","v":15},{"$f":"IF(ISBLANK(sel_Field\\Tillage),\"\",sel_Field\\Tillage)","v":"Conventional"}]
["Field_Crop_Rotation\\1_Crop_Season_Ago",1,"Groundnut",15,null,null,null,"Field_Crop_Rotation\\1_Crop_Season_Ago",15,3,{"$f":"getRiskValue(\"A:A\",H5,J5,L5,\"Single\")","v":3},{"$f":"IF(ISBLANK(sel_Field_Crop_Rotation\\1_Crop_Season_Ago),\"\",sel_Field_Crop_Rotation\\1_Crop_Season_Ago)","v":"Cotton"}]
["Field_Crop_Rotation\\1_Crop_Season_Ago",2,"Chickpea|Cotton|Cumin|Fodder|Garlic|Melons|Onion|Pearl Millet|Vegetables|Wheat",3,null,null,null,"Field_Crop_Rotation\\2_Crop_Seasons_Ago",10,2,{"$f":"getRiskValue(\"A:A\",H6,J6,L6,\"Single\")","v":2},{"$f":"IF(ISBLANK(sel_Field_Crop_Rotation\\2_Crop_Seasons_Ago),\"\",sel_Field_Crop_Rotation\\2_Crop_Seasons_Ago)","v":"Cotton"}]
["Field_Crop_Rotation\\2_Crop_Seasons_Ago",1,"Groundnut",10,null,null,null,"Pest_Control\\Nematicide",0,-40,{"$f":"getRiskValue(\"A:A\",H7,J7,L7,\"Single\")","v":-25},{"$f":"IF(ISBLANK(sel_Pest_Control\\Nematicide),\"\",sel_Pest_Control\\Nematicide)","v":"Metam Sodium"}]
["Field_Crop_Rotation\\2_Crop_Seasons_Ago",2,"Chickpea|Cotton|Cumin|Fodder|Garlic|Melons|Onion|Pearl Millet|Vegetables|Wheat",2]
["Field_Nematode_Population\\Root_Lesion",1,"High",40,null,null,null,"Total",{"$f":"SUMIF(I3:I7,\">0\")","v":80},{"$f":"SUMIF(J3:J7,\">0\")","v":10},{"$f":"MAX(RLN_MinRiskIndex,SUM(K3:K7))","v":35}]
["Field_Nematode_Population\\Root_Lesion",2,"Moderate",30]
["Field_Nematode_Population\\Root_Lesion",3,"Low",20,null,null,null,"High Risk Index",45]
["Field_Nematode_Population\\Root_Lesion",4,"None",0,null,null,null,"Moderate Risk Index",35]
["Pest_Control\\Nematicide",1,"None|Phorate 20 G|Thimet 20 G",0]
["Pest_Control\\Nematicide",2,"Temik",-15]
["Pest_Control\\Nematicide",3,"Metam Sodium",-25]
["Pest_Control\\Nematicide",4,"Temik and Metam Sodium",-40]

{"sheet":"SKM","index":22,"n_rows":16,"n_cols":12,"rows_kept":16,"cut":false,"hidden":true,"merged":[[0,0,0,3]]}
["Stunt-Kalahasty Malady"]
["Category","Risk Level","Risk Level Description","Points",null,null,null,"Category","Max","Min","Risk","Selection"]
["Field\\Tillage",1,"Conventional|Deep (Improved)",15,null,null,null,"Field_Nematode_Population\\Stunt",40,0,{"$f":"getRiskValue(\"A:A\",H3,J3,L3,\"Single\")","v":40},{"$f":"IF(ISBLANK(sel_Field_Nematode_Population\\Stunt),\"\",sel_Field_Nematode_Population\\Stunt)","v":"High"}]
["Field\\Tillage",2,"Strip into killed cover crop or previous crop residue",5,null,null,null,"Field\\Tillage",15,5,{"$f":"getRiskValue(\"A:A\",H4,J4,L4,\"Single\")","v":15},{"$f":"IF(ISBLANK(sel_Field\\Tillage),\"\",sel_Field\\Tillage)","v":"Conventional"}]
["Field_Crop_Rotation\\1_Crop_Season_Ago",1,"Groundnut",15,null,null,null,"Field_Crop_Rotation\\1_Crop_Season_Ago",15,3,{"$f":"getRiskValue(\"A:A\",H5,J5,L5,\"Single\")","v":3},{"$f":"IF(ISBLANK(sel_Field_Crop_Rotation\\1_Crop_Season_Ago),\"\",sel_Field_Crop_Rotation\\1_Crop_Season_Ago)","v":"Cotton"}]
["Field_Crop_Rotation\\1_Crop_Season_Ago",2,"Chickpea|Cotton|Cumin|Fodder|Garlic|Melons|Onion|Pearl Millet|Vegetables|Wheat",3,null,null,null,"Field_Crop_Rotation\\2_Crop_Seasons_Ago",10,2,{"$f":"getRiskValue(\"A:A\",H6,J6,L6,\"Single\")","v":2},{"$f":"IF(ISBLANK(sel_Field_Crop_Rotation\\2_Crop_Seasons_Ago),\"\",sel_Field_Crop_Rotation\\2_Crop_Seasons_Ago)","v":"Cotton"}]
["Field_Crop_Rotation\\2_Crop_Seasons_Ago",1,"Groundnut",10,null,null,null,"Pest_Control\\Nematicide",0,-40,{"$f":"getRiskValue(\"A:A\",H7,J7,L7,\"Single\")","v":-25},{"$f":"IF(ISBLANK(sel_Pest_Control\\Nematicide),\"\",sel_Pest_Control\\Nematicide)","v":"Metam Sodium"}]
["Field_Crop_Rotation\\2_Crop_Seasons_Ago",2,"Chickpea|Cotton|Cumin|Fodder|Garlic|Melons|Onion|Pearl Millet|Vegetables|Wheat",2]
["Field_Nematode_Population\\Stunt",1,"High",40,null,null,null,"Total",{"$f":"SUMIF(I3:I7,\">0\")","v":80},{"$f":"SUMIF(J3:J7,\">0\")","v":10},{"$f":"MAX(SKM_MinRiskIndex,SUM(K3:K7))","v":35}]
["Field_Nematode_Population\\Stunt",2,"Moderate",30]
["Field_Nematode_Population\\Stunt",3,"Low",20,null,null,null,"High Risk Index",45]
["Field_Nematode_Population\\Stunt",4,"None",0,null,null,null,"Moderate Risk Index",35]
["Pest_Control\\Nematicide",1,"None|Phorate 20 G|Thimet 20 G",0]
["Pest_Control\\Nematicide",2,"Temik",-15]
["Pest_Control\\Nematicide",3,"Metam Sodium",-25]
["Pest_Control\\Nematicide",4,"Temik and Metam Sodium",-40]

{"sheet":"SP","index":23,"n_rows":28,"n_cols":12,"rows_kept":28,"cut":false,"hidden":true,"merged":[[0,0,0,3]]}
["Pests"]
["Category","Risk Level","Risk Level Description","Points",null,null,null,"Category","Max","Min","Risk","Selection"]
["Crop\\Cultivar",1,"GG 20",30,null,null,null,"Crop\\Cultivar",30,10,{"$f":"getRiskValue(\"A:A\",H3,J3,L3,\"Single\")","v":10},{"$f":"IF(ISBLANK(sel_Crop\\Cultivar),\"\",sel_Crop\\Cultivar)","v":"ICG FDRS 10"}]
["Crop\\Cultivar",2,"BG 3|CSMG 84-1|GG 2|GG 7|ICGS 44|ICGS 76|M 335|M 522|Somnath",20,null,null,null,"Crop\\Planting_Date",20,5,{"$f":"getRiskValue(\"A:A\",H4,J4,L4,\"Date\")","v":20},{"$f":"IF(ISBLANK(sel_Crop\\Planting_Date),\"\",sel_Crop\\Planting_Date)","v":"2022-05-15"}]
["Crop\\Cultivar",3,"ICG FDRS 10|ICGV 86590|R 8808|R 9201|TG 37 A|TPG-41",10,null,null,null,"Field_Pest_History\\Soil_Pests",20,5,{"$f":"getRiskValue(\"A:A\",H5,J5,L5,\"Single\")","v":15},{"$f":"IF(ISBLANK(sel_Field_Pest_History\\Soil_Pests),\"\",sel_Field_Pest_History\\Soil_Pests)","v":"Present but not a problem with good pesticide program"}]
["Crop\\Planting_Date",1,"001 to 181",20,null,null,null,"Crop\\Plants_per_1m_Row",15,5,15,{"$f":"IF(ISBLANK(sel_Crop\\Plants_per_1m_Row),\"\",sel_Crop\\Plants_per_1m_Row)","v":"13 or more"}]
["Crop\\Planting_Date",2,"182 to 196",10,null,null,null,"Field\\Irrigation",15,5,5,{"$f":"IF(ISBLANK(sel_Field\\Irrigation),\"\",sel_Field\\Irrigation)","v":"Irrigated (Recommended)"}]
["Crop\\Planting_Date",3,"197 to 365",5,null,null,null,"Field\\Tillage",15,5,15,{"$f":"IF(ISBLANK(sel_Field\\Tillage),\"\",sel_Field\\Tillage)","v":"Conventional"}]
["Crop\\Plants_per_1m_Row",1,"13 or more",15,null,null,null,"Field_Crop_Rotation\\1_Crop_Season_Ago",12,1,1,{"$f":"IF(ISBLANK(sel_Field_Crop_Rotation\\1_Crop_Season_Ago),\"\",sel_Field_Crop_Rotation\\1_Crop_Season_Ago)","v":"Cotton"}]
["Crop\\Plants_per_1m_Row",2,"7 to 12",10,null,null,null,"Field_Crop_Rotation\\2_Crop_Seasons_Ago",8,1,1,{"$f":"IF(ISBLANK(sel_Field_Crop_Rotation\\2_Crop_Seasons_Ago),\"\",sel_Field_Crop_Rotation\\2_Crop_Seasons_Ago)","v":"Cotton"}]
["Crop\\Plants_per_1m_Row",3,"6 or fewer",5,null,null,null,"Field_Crop_Rotation\\3_Crop_Seasons_Ago",4,1,4,{"$f":"IF(ISBLANK(sel_Field_Crop_Rotation\\3_Crop_Seasons_Ago),\"\",sel_Field_Crop_Rotation\\3_Crop_Seasons_Ago)","v":"Groundnut"}]
["Field\\Irrigation",1,"Irrigated",15,null,null,null,"Field_Crop_Rotation\\4_Crop_Seasons_Ago",2,1,2,{"$f":"IF(ISBLANK(sel_Field_Crop_Rotation\\4_Crop_Seasons_Ago),\"\",sel_Field_Crop_Rotation\\4_Crop_Seasons_Ago)","v":"Groundnut"}]
["Field\\Irrigation",2,"Non-Irrigated",10]
["Field\\Irrigation",3,"Irrigated (Recommended)",5,null,null,null,"Total",{"$f":"SUMIF(I3:I12,\">0\")","v":141},{"$f":"SUMIF(J3:J12,\">0\")","v":39},{"$f":"MAX(SP_MinRiskIndex,SUM(K3:K12))","v":88}]
["Field\\Tillage",1,"Conventional",15]
["Field\\Tillage",2,"Strip into killed cover crop or previous crop residue",10,null,null,null,"High Risk Index",90]
["Field\\Tillage",3,"Deep (Improved)",5,null,null,null,"Moderate Risk Index",70]
["Field_Crop_Rotation\\1_Crop_Season_Ago",1,"Groundnut|Melons|Vegetables",12]
["Field_Crop_Rotation\\1_Crop_Season_Ago",2,"Chickpea|Cotton|Cumin|Fodder|Garlic|Onion|Pearl Millet|Wheat",1]
["Field_Crop_Rotation\\2_Crop_Seasons_Ago",1,"Groundnut|Melons|Vegetables",8]
["Field_Crop_Rotation\\2_Crop_Seasons_Ago",2,"Chickpea|Cotton|Cumin|Fodder|Garlic|Onion|Pearl Millet|Wheat",1]
["Field_Crop_Rotation\\3_Crop_Seasons_Ago",1,"Groundnut|Melons|Vegetables",4]
["Field_Crop_Rotation\\3_Crop_Seasons_Ago",2,"Chickpea|Cotton|Cumin|Fodder|Garlic|Onion|Pearl Millet|Wheat",1]
["Field_Crop_Rotation\\4_Crop_Seasons_Ago",1,"Groundnut|Melons|Vegetables",2]
["Field_Crop_Rotation\\4_Crop_Seasons_Ago",2,"Chickpea|Cotton|Cumin|Fodder|Garlic|Onion|Pearl Millet|Wheat",1]
["Field_Pest_History\\Soil_Pests",1,"Problem even with good pesticide program",20]
["Field_Pest_History\\Soil_Pests",2,"Present but not a problem with good pesticide program",15]
["Field_Pest_History\\Soil_Pests",3,"None (Peanuts never grown)",5]